Workbook

Sheet Carbon Calculator (EN)
A1: NHS WALES SHARED SERVICES PARTNERSHIP - PROCUREMENT SERVICES
A3: Supply Chain Carbon Calculator 25-26
A5: Instructions
A6: Colleagues can utilise this document to calculate their Supply Chain Carbon Footprint.
A7: Colleagues need to add the supplier name and appropriate spend to Columns A and B respectively and utilise the outputs of Column F as the associated Supply Chain Carbon Emissions.
A8: Colleagues will need to ensure the supplier name matches the supplier name within our Financial Management System to ensure automation of this calculator.
A9: Colleagues should note that this calculator is for illustrative purposes only and that due to ongoing reporting improvement should be updated each financial year.
A11: Exclusions
A12: Please note that intra NHS spend, Anaesthetic Gases, Utilities, Waste, and Expenses related carbon emissions are excluded from this calculator.
A14: Personnel
A15: For further information please contact:
A17: Name | B17: Role | C17: Email Address | F17: Contact Type
A18: Daniel Gregory | B18: Foundational Economy Manager | C18: Daniel.Gregory@wales.nhs.uk | F18: Primary
A19: Alistair Miller | B19: Sustainable Procurement- Performance Analyst | C19: alistair.miller@wales.nhs.uk | F19: Alternative
A20: Aled Guy | B20: Head of Sustainability and Net Zero Carbon Management | C20: Aled.Guy@wales.nhs.uk | F20: Escalation
A22: Links
A23: This calculator aligns with the current Welsh Public Sector Net Zero reporting guide and reporting spreadsheet.
A24: Public sector net zero reporting guide | GOV.WALES
A26: Carbon Calculator
A28: Supplier Name | B28: Spend | C28: T1 EF | D28: T2 EF | E28: Combined EF (KG CO2e) | F28: Emissions from Spend (KG CO2e)
C29: =VLOOKUP('Carbon Calculator (EN)'!A29,'Master List'!$A$1:$Q$40000,17,FALSE) ->  | D29: =VLOOKUP('Carbon Calculator (EN)'!A29,'Master List'!$A$1:$X$40000,24,FALSE) ->  | E29: =IF(D29<=0.000001,C29,D29) ->  | F29: =E29*B29 -> 
C30: =VLOOKUP('Carbon Calculator (EN)'!A30,'Master List'!$A$1:$Q$40000,17,FALSE) ->  | D30: =VLOOKUP('Carbon Calculator (EN)'!A30,'Master List'!$A$1:$X$40000,24,FALSE) ->  | E30: =IF(D30<=0.000001,C30,D30) ->  | F30: =E30*B30 -> 
C31: =VLOOKUP('Carbon Calculator (EN)'!A31,'Master List'!$A$1:$Q$40000,17,FALSE) ->  | D31: =VLOOKUP('Carbon Calculator (EN)'!A31,'Master List'!$A$1:$X$40000,24,FALSE) -> 
C32: =VLOOKUP('Carbon Calculator (EN)'!A32,'Master List'!$A$1:$Q$40000,17,FALSE) ->  | D32: =VLOOKUP('Carbon Calculator (EN)'!A32,'Master List'!$A$1:$X$40000,24,FALSE) -> 
C33: =VLOOKUP('Carbon Calculator (EN)'!A33,'Master List'!$A$1:$Q$40000,17,FALSE) ->  | D33: =VLOOKUP('Carbon Calculator (EN)'!A33,'Master List'!$A$1:$X$40000,24,FALSE) -> 
C34: =VLOOKUP('Carbon Calculator (EN)'!A34,'Master List'!$A$1:$Q$40000,17,FALSE) ->  | D34: =VLOOKUP('Carbon Calculator (EN)'!A34,'Master List'!$A$1:$X$40000,24,FALSE) -> 
C35: =VLOOKUP('Carbon Calculator (EN)'!A35,'Master List'!$A$1:$Q$40000,17,FALSE) ->  | D35: =VLOOKUP('Carbon Calculator (EN)'!A35,'Master List'!$A$1:$X$40000,24,FALSE) -> 
C36: =VLOOKUP('Carbon Calculator (EN)'!A36,'Master List'!$A$1:$Q$40000,17,FALSE) ->  | D36: =VLOOKUP('Carbon Calculator (EN)'!A36,'Master List'!$A$1:$X$40000,24,FALSE) -> 
C37: =VLOOKUP('Carbon Calculator (EN)'!A37,'Master List'!$A$1:$Q$40000,17,FALSE) ->  | D37: =VLOOKUP('Carbon Calculator (EN)'!A37,'Master List'!$A$1:$X$40000,24,FALSE) -> 
C38: =VLOOKUP('Carbon Calculator (EN)'!A38,'Master List'!$A$1:$Q$40000,17,FALSE) ->  | D38: =VLOOKUP('Carbon Calculator (EN)'!A38,'Master List'!$A$1:$X$40000,24,FALSE) -> 

Sheet FE Calculator (EN)
A1: NHS WALES SHARED SERVICES PARTNERSHIP - PROCUREMENT SERVICES
A3: Supply Chain Foundational Economy Calculator 25-26
A5: Instructions
A6: Colleagues can utilise this document to calculate their Supply Chain Foundational Economy Spend, spend within specific regions and spend with specific Health Board geographical footprint(s).
A7: Colleagues need to add the supplier name and appropriate spend to Columns A and B respectively and utilise the outputs of Column F, G and H as the associated Foundational Economy spend, spend within region(s) and spend within specific Health Board geographical footprint(s)
A8: Colleagues will need to ensure the supplier name matches the supplier name within our Financial Management System to ensure automation of this calculator.
A9: Colleagues should note that this calculator is for illustrative purposes and may not include suppliers who are new to NHS Wales.
A11: Exclusions and notes
A12: Please note that the Foundational Economy spend relates to the head quarters of the supply organisation or where the monetary value of projects is retained.
A13: Furthermore for clarity the below map outlines the specific regions of Wales aligned to this reporting
A28: Personnel
A29: For further information please contact:
A31: Name | B31: Role | C31: Email Address | F31: Contact Type
A32: Daniel Gregory | B32: Foundational Economy Manager | C32: Daniel.Gregory@wales.nhs.uk | F32: Primary
A33: Alistair Miller | B33: Sustainable Procurement- Performance Analyst | C33: Alistair.Miller@wales.nhs.uk | F33: Alternative
A34: Aled Guy | B34: Head of Sustainability and Net Zero Carbon Management | C34: Aled.Guy@wales.nhs.uk | F34: Escalation
A36: Foundational Economy Calculator
A38: Supplier Name | B38: Spend | C38: HQ Location - Welsh (Y/N) | D38: HQ Locaion - Region | E38: HQ Location - Health Board or Trust | F38: Foundational Economy Spend
C39: =VLOOKUP(A39,'Master List'!$A$1:$Q$40000,4,FALSE) ->  | D39: =VLOOKUP(A39,'Master List'!$A$1:$Q$40000,11,FALSE) ->  | E39: =VLOOKUP(A39,'Master List'!$A$1:$Q$25000,12,FALSE) ->  | F39: =IF(C39="Y", B39, IF(C39="N", 0, IF(C39=0, "Non Reported Foundational Economy Spend", ""))) -> 
C40: =VLOOKUP(A40,'Master List'!$A$1:$Q$40000,4,FALSE) ->  | D40: =VLOOKUP(A40,'Master List'!$A$1:$Q$25000,11,FALSE) ->  | E40: =VLOOKUP(A40,'Master List'!$A$1:$Q$25000,12,FALSE) ->  | F40: =IF(C40="Y", B40, IF(C40="N", 0, IF(C40=0, "Non Reported Foundational Economy Spend", ""))) -> 
C41: =VLOOKUP(A41,'Master List'!$A$1:$Q$40000,4,FALSE) ->  | D41: =VLOOKUP(A41,'Master List'!$A$1:$Q$25000,11,FALSE) ->  | E41: =VLOOKUP(A41,'Master List'!$A$1:$Q$25000,12,FALSE) -> 
C42: =VLOOKUP(A42,'Master List'!$A$1:$Q$40000,4,FALSE) ->  | D42: =VLOOKUP(A42,'Master List'!$A$1:$Q$25000,11,FALSE) ->  | E42: =VLOOKUP(A42,'Master List'!$A$1:$Q$25000,12,FALSE) -> 
C43: =VLOOKUP(A43,'Master List'!$A$1:$Q$40000,4,FALSE) ->  | D43: =VLOOKUP(A43,'Master List'!$A$1:$Q$25000,11,FALSE) ->  | E43: =VLOOKUP(A43,'Master List'!$A$1:$Q$25000,12,FALSE) -> 
C44: =VLOOKUP(A44,'Master List'!$A$1:$Q$40000,4,FALSE) ->  | D44: =VLOOKUP(A44,'Master List'!$A$1:$Q$25000,11,FALSE) ->  | E44: =VLOOKUP(A44,'Master List'!$A$1:$Q$25000,12,FALSE) -> 
C45: =VLOOKUP(A45,'Master List'!$A$1:$Q$40000,4,FALSE) ->  | D45: =VLOOKUP(A45,'Master List'!$A$1:$Q$25000,11,FALSE) ->  | E45: =VLOOKUP(A45,'Master List'!$A$1:$Q$25000,12,FALSE) -> 
C46: =VLOOKUP(A46,'Master List'!$A$1:$Q$40000,4,FALSE) ->  | D46: =VLOOKUP(A46,'Master List'!$A$1:$Q$25000,11,FALSE) ->  | E46: =VLOOKUP(A46,'Master List'!$A$1:$Q$25000,12,FALSE) -> 
C47: =VLOOKUP(A47,'Master List'!$A$1:$Q$40000,4,FALSE) ->  | D47: =VLOOKUP(A47,'Master List'!$A$1:$Q$25000,11,FALSE) ->  | E47: =VLOOKUP(A47,'Master List'!$A$1:$Q$25000,12,FALSE) -> 
C48: =VLOOKUP(A48,'Master List'!$A$1:$Q$40000,4,FALSE) ->  | D48: =VLOOKUP(A48,'Master List'!$A$1:$Q$25000,11,FALSE) ->  | E48: =VLOOKUP(A48,'Master List'!$A$1:$Q$25000,12,FALSE) -> 

Sheet Carbon Calculator (CY)
A1: PARTNERIAETH CYDWASANAETHAU GIG CYMRU - GWASANAETHAU CAFFAEL
A3: Cyfrifiannell Carbon y Gadwyn Gyflenwi 25-26
A5: Cyfarwyddiadau
A6: Gall cydweithwyr ddefnyddio'r ddogfen hon i gyfrifo eu Hôl Troed Carbon yn y Gadwyn Gyflenwi.
A7: Mae angen i gydweithwyr ychwanegu enw'r cyflenwr a'r gwariant priodol yn Ngholofnau A a B yn y drefn honno a defnyddio allbynnau Colofn F fel yr Allyriadau Carbon Cadwyn Cyflenwi cysylltiedig.
A8: Bydd angen i gydweithwyr sicrhau bod enw’r cyflenwr yn cyfateb i enw’r cyflenwr yn ein System Rheoli Ariannol er mwyn sicrhau bod y gyfrifiannell hon yn cael ei awtomeiddio.
A9: Dylai cydweithwyr gadw mewn cof bod y gyfrifiannell hon at ddibenion enghreifftiol yn unig a dylid ei diweddaru bob blwyddyn ariannol oherwydd gwelliannau adrodd parhaus.
A11: Eithriadau
A12: Sylwch fod gwariant o fewn y GIG, Nwyon Anesthetig, Cyfleustodau, Gwastraff, ac allyriadau carbon yn ymwneud â Threuliau wedi'u heithrio o'r gyfrifiannell hon.
A14: Personél
A15: I gael gwybodaeth bellach, cysylltwch â:
A17: Enw | B17: Rôl | C17: Cyfeiriad E-bost | F17: Math o Gontract
A18: Daniel Gregory | B18: Rheolwr Yr Economi Sylfaenol | C18: Daniel.Gregory@wales.nhs.uk | F18: Sylfaenol
A19: Alistair Miller | B19: Caffael Cynaliadwy - Dadansoddwr Perfformiad | C19: Alistair.Miller@wales.nhs.uk | F19: Amgen
A20: Aled Guy | B20: Pennaeth Cynaliadwyedd a Rheoli Carbon Sero Net | C20: Aled.Guy@wales.nhs.uk | F20: Uwchgyfeirio
A22: Dolenni
A23: Mae'r gyfrifiannell hon yn cyd-fynd â chanllaw adrodd a thaenlen adrodd Sero Net Sector Cyhoeddus Cymru ar hyn o bryd.
A24: Canllaw sector cyhoeddus ar gyfer adrodd ar garbon sero-net | LLYW.CYMRU
A26: Cyfrifiannell Carbon
A28: Enw'r Cyflenwr | B28: Gwariant | C28: Ffactor Allyriadau Haen 1 | D28: Ffactor Allyriadau Haen 2 | E28: Ffactor Allyriadau Cyfun (KG CO2e) | F28: Allyriadau o Wariant (KG CO2e)
C29: =VLOOKUP('Carbon Calculator (CY)'!A29,'Master List'!$A$1:$Q$40000,17,FALSE) ->  | D29: =VLOOKUP(A29,'Master List'!$A$1:$X$40000,24,FALSE) ->  | E29: =IF(D29<=0.000001,C29,D29) ->  | F29: =E29*B29 -> 
C30: =VLOOKUP('Carbon Calculator (CY)'!A30,'Master List'!$A$1:$Q$40000,17,FALSE) ->  | D30: =VLOOKUP(A30,'Master List'!$A$1:$X$40000,24,FALSE) ->  | E30: =IF(D30<=0.000001,C30,D30) ->  | F30: =E30*B30 -> 
C31: =VLOOKUP('Carbon Calculator (CY)'!A31,'Master List'!$A$1:$Q$40000,17,FALSE) ->  | D31: =VLOOKUP(A31,'Master List'!$A$1:$X$40000,24,FALSE) -> 
C32: =VLOOKUP('Carbon Calculator (CY)'!A32,'Master List'!$A$1:$Q$40000,17,FALSE) ->  | D32: =VLOOKUP(A32,'Master List'!$A$1:$X$40000,24,FALSE) -> 
C33: =VLOOKUP('Carbon Calculator (CY)'!A33,'Master List'!$A$1:$Q$40000,17,FALSE) ->  | D33: =VLOOKUP(A33,'Master List'!$A$1:$X$40000,24,FALSE) -> 
C34: =VLOOKUP('Carbon Calculator (CY)'!A34,'Master List'!$A$1:$Q$40000,17,FALSE) ->  | D34: =VLOOKUP(A34,'Master List'!$A$1:$X$40000,24,FALSE) -> 
C35: =VLOOKUP('Carbon Calculator (CY)'!A35,'Master List'!$A$1:$Q$40000,17,FALSE) ->  | D35: =VLOOKUP(A35,'Master List'!$A$1:$X$40000,24,FALSE) -> 
C36: =VLOOKUP('Carbon Calculator (CY)'!A36,'Master List'!$A$1:$Q$40000,17,FALSE) ->  | D36: =VLOOKUP(A36,'Master List'!$A$1:$X$40000,24,FALSE) -> 
C37: =VLOOKUP('Carbon Calculator (CY)'!A37,'Master List'!$A$1:$Q$40000,17,FALSE) ->  | D37: =VLOOKUP(A37,'Master List'!$A$1:$X$40000,24,FALSE) -> 
C38: =VLOOKUP('Carbon Calculator (CY)'!A38,'Master List'!$A$1:$Q$40000,17,FALSE) ->  | D38: =VLOOKUP(A38,'Master List'!$A$1:$X$40000,24,FALSE) -> 

Sheet FE Calculator (CY)
A1: PARTNERIAETH CYDWASANAETHAU GIG CYMRU - GWASANAETHAU CAFFAEL
A3: Cyfrifiannell Economi Sylfaenol y Gadwyn Gyflenwi 25-26
A5: Cyfarwyddiadau
A6: Gall cydweithwyr ddefnyddio’r ddogfen hon i gyfrifo eu Gwariant ar Economi Sylfaenol y Gadwyn Gyflenwi, gwariant o fewn rhanbarthau penodol a gwariant gydag ôl troed(ion) daearyddol penodol y Bwrdd Iechyd.
A7: Mae angen i gydweithwyr ychwanegu enw’r cyflenwr a’r gwariant priodol at Golofnau A a B yn y drefn honno a defnyddio allbynnau Colofn F, G ac H fel gwariant cysylltiedig yr Economi Sylfaenol, gwariant o fewn rhanbarth(au) a gwariant o fewn ôl troed(nau) daearyddol penodol y Bwrdd Iechyd.
A8: Bydd angen i gydweithwyr sicrhau bod enw’r cyflenwr yn cyfateb i enw’r cyflenwr yn ein System Rheolaeth Ariannol er mwyn sicrhau bod y gyfrifiannell hon yn cael ei awtomeiddio.
A9: Dylai cydweithwyr nodi bod y gyfrifiannell hon at ddibenion enghreifftiol ac efallai na fydd yn cynnwys cyflenwyr sy’n newydd i GIG Cymru.
A11: Gwaharddiadau a nodiadau
A12: Sylwch fod y gwariant ar yr Economi Sylfaenol yn ymwneud â phencadlys y sefydliad cyflenwi neu lle cedwir gwerth ariannol prosiectau.
A13: At hynny, er eglurder, mae'r map isod yn amlinellu'r rhanbarthau penodol o Gymru sy'n cyd-fynd â'r adroddiadau hyn
A28: Personél
A29: Am ragor o wybodaeth cysylltwch â:
A31: Enw | B31: Rôl | C31: Cyfeiriad E-bost | F31: Math o Gontract
A32: Daniel Gregory | B32: Rheolwr Yr Economi Sylfaenol | C32: Daniel.Gregory@wales.nhs.uk | F32: Sylfaenol
A33: Alistair Miller | B33: Caffael Cynaliadwy - Dadansoddwr Perfformiad | C33: Alistair.Miller@wales.nhs.uk | F33: Amgen
A34: Aled Guy | B34: Pennaeth Cynaliadwyedd a Rheoli Carbon Sero Net | C34: Aled.Guy@wales.nhs.uk | F34: Uwchgyfeirio
A36: Cyfrifiannell yr Economi Sylfaenol
A38: Enw'r Cyflenwr | B38: Gwariant | C38: Lleoliad Pencadlys - Cymru (Ie/Na) | D38: Lleoliad Pencadlys - Rhanbarth | E38: Lleoliad y Pencadlys - Bwrdd Iechyd neu Ymddiriedolaeth | F38: Gwariant ar yr Economi Sylfaenol
C39: =VLOOKUP(A39,'Master List'!$A$1:$Q$40000,4,FALSE) ->  | D39: =VLOOKUP(A39,'Master List'!$A$1:$Q$40000,11,FALSE) ->  | E39: =VLOOKUP(A39,'Master List'!$A$1:$Q$40000,12,FALSE) ->  | F39: =IF(C39="Y", B39, IF(C39="N", 0, IF(C39=0, "Non Reported Foundational Economy Spend", ""))) -> 
C40: =VLOOKUP(A40,'Master List'!$A$1:$Q$40000,4,FALSE) ->  | D40: =VLOOKUP(A40,'Master List'!$A$1:$Q$40000,11,FALSE) ->  | E40: =VLOOKUP(A40,'Master List'!$A$1:$Q$40000,12,FALSE) ->  | F40: =IF(C40="Y", B40, IF(C40="N", 0, IF(C40=0, "Non Reported Foundational Economy Spend", ""))) -> 
C41: =VLOOKUP(A41,'Master List'!$A$1:$Q$40000,4,FALSE) ->  | D41: =VLOOKUP(A41,'Master List'!$A$1:$Q$40000,11,FALSE) ->  | E41: =VLOOKUP(A41,'Master List'!$A$1:$Q$40000,12,FALSE) -> 
C42: =VLOOKUP(A42,'Master List'!$A$1:$Q$40000,4,FALSE) ->  | D42: =VLOOKUP(A42,'Master List'!$A$1:$Q$40000,11,FALSE) ->  | E42: =VLOOKUP(A42,'Master List'!$A$1:$Q$40000,12,FALSE) -> 
C43: =VLOOKUP(A43,'Master List'!$A$1:$Q$40000,4,FALSE) ->  | D43: =VLOOKUP(A43,'Master List'!$A$1:$Q$40000,11,FALSE) ->  | E43: =VLOOKUP(A43,'Master List'!$A$1:$Q$40000,12,FALSE) -> 
C44: =VLOOKUP(A44,'Master List'!$A$1:$Q$40000,4,FALSE) ->  | D44: =VLOOKUP(A44,'Master List'!$A$1:$Q$40000,11,FALSE) ->  | E44: =VLOOKUP(A44,'Master List'!$A$1:$Q$40000,12,FALSE) -> 
C45: =VLOOKUP(A45,'Master List'!$A$1:$Q$40000,4,FALSE) ->  | D45: =VLOOKUP(A45,'Master List'!$A$1:$Q$40000,11,FALSE) ->  | E45: =VLOOKUP(A45,'Master List'!$A$1:$Q$40000,12,FALSE) -> 
C46: =VLOOKUP(A46,'Master List'!$A$1:$Q$40000,4,FALSE) ->  | D46: =VLOOKUP(A46,'Master List'!$A$1:$Q$40000,11,FALSE) ->  | E46: =VLOOKUP(A46,'Master List'!$A$1:$Q$40000,12,FALSE) -> 
C47: =VLOOKUP(A47,'Master List'!$A$1:$Q$40000,4,FALSE) ->  | D47: =VLOOKUP(A47,'Master List'!$A$1:$Q$40000,11,FALSE) ->  | E47: =VLOOKUP(A47,'Master List'!$A$1:$Q$40000,12,FALSE) -> 
C48: =VLOOKUP(A48,'Master List'!$A$1:$Q$40000,4,FALSE) ->  | D48: =VLOOKUP(A48,'Master List'!$A$1:$Q$40000,11,FALSE) ->  | E48: =VLOOKUP(A48,'Master List'!$A$1:$Q$40000,12,FALSE) -> 

Sheet Master List (hidden)
A1: Supplier Name | B1: Supplier Number | C1: WELSH Corrected | D1: System Welsh | E1: Amendment? | F1: Nation | G1: SME | H1: Sector | I1: HQ Postcode | J1: WG Region | K1: LHB Region | L1: Supplier Site | M1: Supply Chain Group | N1: SIC Long Code | O1: SIC Short Code | P1: SIC Description | Q1: Emmissions Factor Tier 1 | R1: Period of CRP (Calander / Financial Year / Other) | S1: Scope 1 Emissions (KGCO2e) | T1: Scope 2 Emissions (KGCO2e) | U1: Scope 3 Emissions (KGCO2e) | V1: Total Emissions (KGCo2e) | W1: Turnover (£) | X1: Emmissions Factor Tier 2 | Y1: Notes | Z1: Net Zero reporting Position (Supplier List) | AA1: FE Reporting Position | AB1: Net Zero Reporting Position (Master Supplier List) | AC1: Postcodeshort | AD1: Postcode short
A2: THE ROBERT GORDON UNIVERSITY | B2: 52811 | C2: N | D2: N | E2: TRUE | F2: GB | G2: N | H2: PRIVATE SECTOR | I2: AB10 7QB | L2: ABERDEEN AB10 | M2: Education | N2: 85590 | O2: 85 | P2: Education services | Q2: 0.1883799764 | Z2: 0 | AA2: Reportable | AB2: Reportable | AC2: AB10 | AD2: B1
A3: THE SPIRES SERVICED APARTMENTS UK LTD | B3: 77336 | C3: N | D3: N | E3: TRUE | F3: GB | G3: Y | H3: PRIVATE SECTOR | I3: AB10 6WD | L3: ABERDEEN AB10 | M3: Accommodation and food service activities | N3: 55100 | O3: 55 | P3: Accommodation services | Q3: 0.3406388606 | Z3: 0 | AA3: Reportable | AB3: Reportable | AC3: AB10 | AD3: RG14
A4: FIRST CYMRU BUSES LTD | B4: 36134 | C4: N | D4: N | E4: TRUE | F4: GB | G4: N | H4: PRIVATE SECTOR | I4: AB11 5BW | L4: ABERDEEN AB11 | M4: Transportation and storage | N4: 49319 | O4: 49.3-5 | P4: Land transport services and transport services via pipelines, excluding rail transport | Q4: 0.6206781638 | AA4: Reportable | AB4: Reportable | AC4: AB11 | AD4: WR3
A5: CLEARWATER ELECTRICAL LTD | B5: 73277 | C5: N | D5: N | E5: TRUE | F5: GB | G5: Y | H5: PRIVATE SECTOR | I5: AB12 4XX | L5: ABERDEEN AB12 | M5: Construction | N5: 43210 | O5: 42.99 | P5: Specialised construction works | Q5: 0.3123398822 | Z5: 0 | AA5: Reportable | AB5: Reportable | AC5: AB12 | AD5: HP2
A6: NHS GRAMPIAN | B6: 15969 | C6: 0 | F6: GB | G6: N | H6: PUBLIC SECTOR | I6: AB15 6LS | L6: ABERDEEN AB15 | Z6: 0 | AA6: Exclude | AB6: Exclude- Intra NHS | AC6: AB15 | AD6: W1K
A7: ACCESS XL LTD | B7: 60717 | C7: N | D7: N | E7: TRUE | F7: GB | G7: N | H7: PRIVATE SECTOR | I7: AB21 0PS | L7: ABERDEEN AB21 | M7: Manufacturing | N7: 28220 | O7: 28 | P7: Machinery and equipment n.e.c. | Q7: 0.4452676908 | AA7: Reportable | AB7: Reportable | AC7: AB21 | AD7: B77
A8: BICKIEPEGS | B8: 10343 | C8: N | D8: N | E8: TRUE | F8: GB | G8: N | H8: PRIVATE SECTOR | I8: AB21 0RX | L8: ABERDEEN AB21 | M8: Other service activities | N8: 96090 | O8: 96 | P8: Other personal services | Q8: 0.09278479264 | Z8: 0 | AA8: Reportable | AB8: Reportable | AC8: AB21 | AD8: EC2R
A9: NCIMB LTD | B9: 52821 | C9: N | D9: N | E9: TRUE | F9: GB | G9: N | H9: PRIVATE SECTOR | I9: AB21 9YA | L9: ABERDEEN AB21 | M9: Professional, scientific and technical activities | N9: 72190 | O9: 72 | P9: Scientific research and development services | Q9: 0.2216321284 | AA9: Reportable | AB9: Reportable | AC9: AB21 | AD9: RH13
A10: UNIVERSITY OF ABERDEEN | B10: 12905 | C10: N | D10: N | E10: TRUE | F10: GB | G10: N | H10: PUBLIC SECTOR | I10: AB24 3FX | L10: ABERDEEN AB24 | M10: Education | N10: 85421 | O10: 85 | P10: Education services | Q10: 0.1883799764 | R10: 2023 | S10: 41522405.67 | T10: 0 | U10: 35555537 | V10: 77077942.67 | W10: 268635000 | X10: 0.2869244241 | Y10: HESA Data | Z10: 0 | AA10: Reportable | AB10: Reportable | AC10: AB24 | AD10: OX1
A11: DR MICHAEL MUNRO | B11: 77036 | C11: N | D11: N | E11: TRUE | F11: GB | G11: Y | H11: PRIVATE SECTOR | I11: AB25 2ZL | L11: ABERDEEN AB25 | M11: Human health and social work activities | N11: 86000 | O11: 86 | P11: Human health services | Q11: 0.3203077099 | Z11: 0 | AA11: Reportable | AB11: Reportable | AC11: AB25 | AD11: S3
A12: EATING DISORDERS EDUCATION AND TRAINING SCOTLAND (EEATS) | B12: 66769 | C12: N | D12: N | E12: TRUE | F12: GB | G12: Y | H12: PUBLIC SECTOR | I12: AB25 2ZH | L12: ABERDEEN AB25 | M12: Human health and social work activities | N12: 86000 | O12: 86 | P12: Human health services | Q12: 0.3203077099 | AA12: Reportable | AB12: Reportable | AC12: AB25
A13: CLOSE AND CALM LTD | B13: 73221 | C13: N | D13: N | E13: TRUE | F13: GB | G13: Y | H13: VCSE | I13: AB31 5TJ | L13: ABERDEEN AB31 | M13: Human health and social work activities | N13: 86900 | O13: 86 | P13: Human health services | Q13: 0.3203077099 | Z13: 0 | AA13: Reportable | AB13: Reportable | AC13: AB31 | AD13: CH4
A14: 20/20 BUSINESS INSIGHT LTD | B14: 65350 | C14: N | D14: N | E14: TRUE | F14: GB | G14: N | H14: PRIVATE SECTOR | I14: AB32 6UF | L14: WESTHILL AB32 | M14: Professional, scientific and technical activities | N14: 70229 | O14: 70 | P14: Services of head offices; management consulting services | Q14: 0.1606219056 | AA14: Reportable | AB14: Reportable | AC14: AB32 | AD14: OX7
A15: SCIAMED LTD | B15: 53593 | C15: N | D15: N | E15: TRUE | F15: GB | G15: N | H15: PRIVATE SECTOR | I15: AB33 8BZ | L15: ALFORD AB33 | M15: Information and communication | N15: 62020 | O15: 62 | P15: Computer programming, consultancy and related services | Q15: 0.1532896312 | AA15: Reportable | AB15: Reportable | AC15: AB33 | AD15: CR0
A16: LISA JAMIESON | B16: 72398 | C16: N | D16: N | E16: TRUE | F16: GB | G16: N | H16: PRIVATE SECTOR | I16: AB39 3NR | L16: STONEHAVE AB39 | M16: Human health and social work activities | N16: 86000 | O16: 86 | P16: Human health services | Q16: 0.3203077099 | Z16: 0 | AA16: Reportable | AB16: Reportable | AC16: AB39 | AD16: BD9
A17: ASHGROVE TRADING | B17: 59059 | C17: N | D17: N | E17: TRUE | F17: GB | G17: N | H17: PRIVATE SECTOR | I17: AB42 3JF | L17: PETERHEA AB42 | M17: Other service activities | N17: 96090 | O17: 96 | P17: Other personal services | Q17: 0.09278479264 | Z17: 0 | AA17: Reportable | AB17: Reportable | AC17: AB42 | AD17: LL11
A18: RED ISLAND LTD TA HOPSCOTCH | B18: 68070 | C18: N | D18: N | E18: TRUE | F18: GB | G18: Y | H18: PRIVATE SECTOR | I18: AB42 1UA | L18: PETERHEA AB42 | M18: Administrative and support service activities | N18: 82990 | O18: 82 | P18: Office administrative, office support and other business support services | Q18: 0.1892020832 | AA18: Reportable | AB18: Reportable | AC18: AB42 | AD18: RG21
A19: SAFETRADE 247 LTD | B19: 69934 | C19: N | D19: N | E19: TRUE | F19: GB | G19: Y | H19: PRIVATE SECTOR | I19: AB51 5PD | L19: KEMNAY AB51 | M19: Wholesale and retail trade; repair of motor vehicles and motorcycles | N19: 46190 | O19: 46 | P19: Wholesale trade services, except of motor vehicles and motorcycles | Q19: 0.02234131717 | AA19: Reportable | AB19: Reportable | AC19: AB51 | AD19: LS27
A20: ADVISEINC LTD | B20: 59856 | C20: N | D20: N | E20: TRUE | F20: GB | G20: Y | H20: PRIVATE SECTOR | I20: AL1 1AJ | L20: ST ALBANS AL1 | M20: Professional, scientific and technical activities | N20: 70229 | O20: 70 | P20: Services of head offices; management consulting services | Q20: 0.1606219056 | Z20: 0 | AA20: Reportable | AB20: Reportable | AC20: AL1 | AD20: NG7
A21: AECOM PROFESSIONAL SERVICES LLP | B21: 53087 | C21: N | D21: N | E21: TRUE | F21: GB | G21: N | H21: PRIVATE SECTOR | I21: AL1 3ER | L21: ST ALBANS AL1 | M21: Other service activities | N21: 96090 | O21: 96 | P21: Other personal services | Q21: 0.09278479264 | Z21: 0 | AA21: Reportable | AB21: Reportable | AC21: AL1 | AD21: CF10
A22: AXIS SPINE LTD | B22: 66059 | C22: N | D22: N | E22: TRUE | F22: GB | G22: N | H22: PRIVATE SECTOR | I22: AL1 3HZ | L22: ST ALBANS AL1 | M22: Manufacturing | N22: 32500 | O22: 32 | P22: Other manufactured goods | Q22: 0.6168414356 | Z22: 0 | AA22: Reportable | AB22: Reportable | AC22: AL1 | AD22: NG7
A23: BLINK CHARGING UK LTD | B23: 71574 | C23: N | D23: N | E23: TRUE | F23: GB | G23: Y | H23: PRIVATE SECTOR | I23: AL1 3AW | L23: ST ALBANS AL1 | M23: Administrative and support service activities | N23: 82990 | O23: 82 | P23: Office administrative, office support and other business support services | Q23: 0.1892020832 | Z23: 0 | AA23: Reportable | AB23: Reportable | AC23: AL1 | AD23: L8
A24: BURTONS FOODS LTD | B24: 27533 | C24: N | D24: N | E24: TRUE | F24: GB | G24: N | H24: PRIVATE SECTOR | I24: AL1 3XH | L24: ST ALBANS AL1 | M24: Manufacturing | N24: 10720 | O24: 10.7 | P24: Bakery and farinaceous products | Q24: 0.5666158352 | Z24: 0 | AA24: Reportable | AB24: Reportable | AC24: AL1 | AD24: TF2
A25: DIAVERUM UK | B25: 45290 | C25: N | D25: N | E25: TRUE | F25: GB | G25: N | H25: PRIVATE SECTOR | I25: AL1 1EU | L25: ST ALBANS AL1 | M25: Other service activities | N25: 96090 | O25: 96 | P25: Other personal services | Q25: 0.09278479264 | AA25: Reportable | AB25: Reportable | AC25: AL1 | AD25: GU33
A26: DR RAJESH JAIN | B26: 57954 | C26: N | D26: N | E26: TRUE | F26: GB | G26: N | H26: PRIVATE SECTOR | I26: AL1 1JS | L26: ST ALBANS AL1 | M26: Human health and social work activities | N26: 86210 | O26: 86 | P26: Human health services | Q26: 0.3203077099 | Z26: 0 | AA26: Reportable | AB26: Reportable | AC26: AL1 | AD26: MK7
A27: FINE NEONATAL UK LTD | B27: 70161 | C27: N | D27: N | E27: TRUE | F27: GB | G27: Y | H27: PRIVATE SECTOR | I27: AL1 5HE | L27: ST ALBANS AL1 | M27: Information and communication | N27: 58110 | O27: 58 | P27: Publishing services | Q27: 0.1022139832 | Z27: 0 | AA27: Reportable | AB27: Reportable | AC27: AL1 | AD27: BS4
A28: GD GOLDING TAILORS LTD | B28: 72484 | C28: N | D28: N | E28: TRUE | F28: GB | G28: Y | H28: PRIVATE SECTOR | I28: AL1 4LW | L28: ST ALBANS AL1 | M28: Manufacturing | N28: 14131 | O28: 14 | P28: Wearing apparel | Q28: 0.7384721652 | AA28: Reportable | AB28: Reportable | AC28: AL1 | AD28: SN4
A29: IMPELLUS LTD | B29: 65054 | C29: N | D29: N | E29: TRUE | F29: GB | G29: N | H29: PRIVATE SECTOR | I29: AL1 3HZ | L29: ST ALBANS AL1 | M29: Professional, scientific and technical activities | N29: 70229 | O29: 70 | P29: Services of head offices; management consulting services | Q29: 0.1606219056 | AA29: Reportable | AB29: Reportable | AC29: AL1
A30: JFC ENGINEERING LTD | B30: 4025 | C30: N | D30: N | E30: TRUE | F30: GB | G30: N | H30: PRIVATE SECTOR | I30: AL1 3RD | L30: ST ALBANS AL1 | M30: Manufacturing | N30: 25990 | O30: 25OTHER | P30: Fabricated metal products, excl. machinery and equipment and weapons & ammunition - 25.1-3/25.5-9 | Q30: 0.5753449887 | AA30: Reportable | AB30: Reportable | AC30: AL1 | AD30: MK16
A31: KESTRONICS LTD | B31: 59901 | C31: N | D31: N | E31: TRUE | F31: GB | G31: N | H31: PRIVATE SECTOR | I31: AL1 1XB | L31: ST ALBANS AL1 | M31: Wholesale and retail trade; repair of motor vehicles and motorcycles | N31: 46900 | O31: 46 | P31: Wholesale trade services, except of motor vehicles and motorcycles | Q31: 0.02234131717 | Z31: 0 | AA31: Reportable | AB31: Reportable | AC31: AL1 | AD31: S4
A32: OMNIPLEX GROUP LTD | B32: 13685 | C32: N | D32: N | E32: TRUE | F32: GB | G32: N | H32: PRIVATE SECTOR | I32: AL1 3AW | L32: ST ALBANS AL1 | M32: Information and communication | N32: 62020 | O32: 62 | P32: Computer programming, consultancy and related services | Q32: 0.1532896312 | AA32: Reportable | AB32: Reportable | AC32: AL1 | AD32: LL57
A33: MOTORMAN LTD | B33: 63716 | C33: N | D33: Y | E33: Removal of a False Welsh Supplier | F33: GB | G33: Y | H33: PRIVATE SECTOR | I33: AL1 1XB | L33: ST ALBANS AL1 | M33: Manufacturing | N33: 33170 | O33: 33OTHER | P33: Rest of repair; Installation - 33.11-14/17/19/20 | Q33: 0.2054836704 | AA33: Reportable | AB33: Reportable | AC33: AL1 | AD33: B69
A34: NATIONAL PHARMACY ASSOCIATION SERVICES LTD (NPA SERVICES LTD) | B34: 38162 | C34: N | D34: N | E34: TRUE | F34: GB | G34: N | H34: PRIVATE SECTOR | I34: AL1 3NP | L34: ST ALBANS AL1 | M34: Other service activities | N34: 94110 | O34: 94 | P34: Services furnished by membership organisations | Q34: 0.2152598794 | Z34: 0 | AA34: Reportable | AB34: Reportable | AC34: AL1 | AD34: LE7
A35: NEXCAPE PHARMACEUTICALS LTD | B35: 50216 | C35: N | D35: N | E35: TRUE | F35: GB | G35: Y | H35: PRIVATE SECTOR | I35: AL1 4TA | L35: ST ALBANS AL1 | M35: Wholesale and retail trade; repair of motor vehicles and motorcycles | N35: 46460 | O35: 46 | P35: Wholesale trade services, except of motor vehicles and motorcycles | Q35: 0.02234131717 | AA35: Reportable | AB35: Reportable | AC35: AL1 | AD35: BS4
A36: OP LAW LTD | B36: 57655 | C36: N | D36: N | E36: TRUE | F36: GB | G36: Y | H36: PRIVATE SECTOR | I36: AL1 3HZ | L36: ST ALBANS AL1 | M36: Professional, scientific and technical activities | N36: 69102 | O36: 69.1 | P36: Legal services | Q36: 0.06805573625 | AA36: Reportable | AB36: Reportable | AC36: AL1 | AD36: NP16
A37: CDQ SOLUTIONS LTD | B37: 58733 | C37: N | D37: N | E37: TRUE | F37: GB | G37: Y | H37: PRIVATE SECTOR | I37: AL1 3AN | L37: ST ALBANS AL1 | M37: Information and communication | N37: 62090 | O37: 62 | P37: Computer programming, consultancy and related services | Q37: 0.1532896312 | Z37: 0 | AA37: Reportable | AB37: Reportable | AC37: AL1 | AD37: DL16
A38: SICK (UK) LTD | B38: 60219 | C38: N | D38: N | E38: TRUE | F38: GB | G38: N | H38: PRIVATE SECTOR | I38: AL1 5BN | L38: ST ALBANS AL1 | M38: Manufacturing | N38: 26701 | O38: 26 | P38: Computer, electronic and optical products | Q38: 0.4038225717 | AA38: Reportable | AB38: Reportable | AC38: AL1 | AD38: CF47
A39: SMUG TRAINING LTD | B39: 75787 | C39: N | D39: N | E39: TRUE | F39: GB | G39: Y | H39: PRIVATE SECTOR | I39: AL1 3TF | L39: ST ALBANS AL1 | M39: Education | N39: 85590 | O39: 85 | P39: Education services | Q39: 0.1883799764 | AA39: Reportable | AB39: Reportable | AC39: AL1 | AD39: SN3
A40: ST ALBANS CITY & DISTRICT COUNCIL | B40: 65263 | C40: N | D40: N | E40: TRUE | F40: GB | G40: N | H40: PUBLIC SECTOR | I40: AL1 3JE | L40: ST ALBANS AL1 | M40: Public administration and defence; compulsory social security | N40: 84000 | O40: 84 | P40: Public administration and defence services; compulsory social security services | Q40: 0.2497911231 | AA40: Reportable | AB40: Reportable | AC40: AL1 | AD40: LL31
A41: THE CLOUD NETWORKS LTD | B41: 49114 | C41: N | D41: N | E41: TRUE | F41: GB | G41: N | H41: PRIVATE SECTOR | I41: AL1 3TF | L41: ST ALBANS AL1 | M41: Information and communication | N41: 61900 | O41: 61 | P41: Telecommunications services | Q41: 0.1732097315 | Z41: 0 | AA41: Reportable | AB41: Reportable | AC41: AL1 | AD41: SW1E
A42: THE NATIONAL ASSOCIATION FOR COLITIS & CROHNS DISEASE | B42: 56997 | C42: N | D42: N | E42: TRUE | F42: GB | G42: N | H42: VCSE | I42: AL1 3AW | L42: ST ALBANS AL1 | M42: Human health and social work activities | N42: 88990 | O42: 88 | P42: Social work services without accommodation | Q42: 0.2283360797 | Z42: 0 | AA42: Reportable | AB42: Reportable | AC42: AL1
A43: ZDUP - STEVE HALLIGAN LTD | B43: 66692 | C43: N | D43: N | E43: TRUE | F43: GB | G43: N | H43: PRIVATE SECTOR | I43: AL1 4RD | L43: ST ALBANS AL1 | M43: Human health and social work activities | N43: 86220 | O43: 86 | P43: Human health services | Q43: 0.3203077099 | AA43: Reportable | AB43: Reportable | AC43: AL1 | AD43: SA6
A44: EBIOSCIENCE | B44: 38328 | C44: N | D44: N | E44: TRUE | F44: GB | G44: N | H44: PRIVATE SECTOR | I44: AL10 9NA | L44: HATFIELD AL10 | M44: Administrative and support service activities | N44: 82990 | O44: 82 | P44: Office administrative, office support and other business support services | Q44: 0.1892020832 | Z44: -0.05825734041 | AA44: Reportable | AB44: Reportable | AC44: AL10 | AD44: RH1
A45: HERTFORDSHIRE PARTNERSHIP NHS FOUNDATION TRUST | B45: 39136 | C45: 0 | F45: GB | G45: N | H45: PUBLIC SECTOR | I45: AL10 8YE | L45: HATFIELD AL10 | Z45: 0 | AA45: Exclude | AB45: Exclude- Intra NHS | AC45: AL10 | AD45: CF15
A46: MERCHANTS SYSTEMS LTD | B46: 4853 | C46: N | D46: N | E46: TRUE | F46: GB | G46: Y | H46: PRIVATE SECTOR | I46: AL10 9TW | L46: HATFIELD AL10 | M46: Manufacturing | N46: 18121 | O46: 18 | P46: Printing and recording services | Q46: 0.4337126854 | Z46: 0 | AA46: Reportable | AB46: Reportable | AC46: AL10 | AD46: SA67
A47: MITSUBISHI ELECTRIC EUROPE | B47: 63340 | C47: N | D47: N | E47: TRUE | F47: GB | G47: N | H47: PRIVATE SECTOR | I47: AL10 8XB | L47: HATFIELD AL10 | M47: Manufacturing | N47: 27510 | O47: 27 | P47: Electrical equipment | Q47: 0.4378085751 | Z47: 0 | AA47: Reportable | AB47: Reportable | AC47: AL10 | AD47: LL18
A48: OTODYNAMICS LTD | B48: 3046 | C48: N | D48: N | E48: TRUE | F48: GB | G48: N | H48: PRIVATE SECTOR | I48: AL10 8BB | L48: HATFIELD AL10 | M48: Manufacturing | N48: 32500 | O48: 32 | P48: Other manufactured goods | Q48: 0.6168414356 | Z48: 0 | AA48: Reportable | AB48: Reportable | AC48: AL10 | AD48: PO5
A49: PEVERALL BROS LTD T/A SURVEY EXPRESS SERVICES | B49: 62520 | C49: N | D49: N | E49: TRUE | F49: GB | G49: Y | H49: PRIVATE SECTOR | I49: AL10 0RN | L49: HATFIELD AL10 | M49: Construction | N49: 43999 | O49: 42.99 | P49: Specialised construction works | Q49: 0.3123398822 | AA49: Reportable | AB49: Reportable | AC49: AL10 | AD49: LE18
A50: PITNEY BOWES FINANCE LTD | B50: 13719 | C50: N | D50: N | E50: TRUE | F50: GB | G50: N | H50: PRIVATE SECTOR | I50: AL10 9UJ | L50: HATFIELD AL10 | M50: Financial and insurance activities | N50: 64910 | O50: 64 | P50: Financial services, except insurance and pension funding | Q50: 0.1192820911 | R50: 2023 | S50: 48050000 | T50: 11814000 | U50: 522579000 | V50: =SUM(S50:U50) -> 582443000 | W50: =(3.27*1000000000)/4*3 -> 2452500000 | X50: =V50/W50 -> 0.2374895005 | Y50: carbon reduction plan | Z50: 0 | AA50: Reportable | AB50: Reportable | AC50: AL10 | AD50: NP20
A51: PITNEY BOWES LTD | B51: 721 | C51: N | D51: N | E51: TRUE | F51: GB | G51: N | H51: PRIVATE SECTOR | I51: AL10 9UJ | L51: HATFIELD AL10 | M51: Manufacturing | N51: 28990 | O51: 28 | P51: Machinery and equipment n.e.c. | Q51: 0.4452676908 | R51: 2023 | S51: 48050000 | T51: 11814000 | U51: 522579000 | V51: =SUM(S51:U51) -> 582443000 | W51: =(3.27*1000000000)/4*3 -> 2452500000 | X51: =V51/W51 -> 0.2374895005 | Y51: carbon reduction plan | AA51: Reportable | AB51: Reportable | AC51: AL10 | AD51: EC1Y
A52: PJP LTD | B52: 53307 | C52: N | D52: N | E52: TRUE | F52: GB | G52: N | H52: PRIVATE SECTOR | I52: AL10 0TF | L52: HATFIELD AL10 | M52: Wholesale and retail trade; repair of motor vehicles and motorcycles | N52: 46900 | O52: 46 | P52: Wholesale trade services, except of motor vehicles and motorcycles | Q52: 0.02234131717 | AA52: Reportable | AB52: Reportable | AC52: AL10 | AD52: NR5
A53: ROYSE WELLBEING LTD | B53: 74106 | C53: N | D53: N | E53: TRUE | F53: GB | G53: Y | H53: PRIVATE SECTOR | I53: AL10 0EW | L53: HATFIELD AL10 | M53: Human health and social work activities | N53: 86900 | O53: 86 | P53: Human health services | Q53: 0.3203077099 | Z53: 0 | AA53: Reportable | AB53: Reportable | AC53: AL10 | AD53: GU12
A54: SCHNEIDER ELECTRIC IT UK LTD | B54: 56324 | C54: N | D54: N | E54: TRUE | F54: GB | G54: N | H54: PRIVATE SECTOR | I54: AL10 9NE | L54: HATFIELD AL10 | M54: Manufacturing | N54: 24420 | O54: 24.4-5 | P54: Other basic metals and casting | Q54: 0.1097918047 | AA54: Reportable | AB54: Reportable | AC54: AL10 | AD54: CT19
A55: SILONY MEDICAL LTD | B55: 61902 | C55: N | D55: N | E55: TRUE | F55: GB | G55: Y | H55: PRIVATE SECTOR | I55: AL10 8RS | L55: HATFIELD AL10 | M55: Manufacturing | N55: 32500 | O55: 32 | P55: Other manufactured goods | Q55: 0.6168414356 | Z55: 0 | AA55: Reportable | AB55: Reportable | AC55: AL10 | AD55: LS10
A56: UNIVERSITY OF HERTFORDSHIRE | B56: 15869 | C56: N | D56: N | E56: TRUE | F56: GB | G56: N | H56: PUBLIC SECTOR | I56: AL10 9AB | L56: HATFIELD AL10 | M56: Education | N56: 85421 | O56: 85 | P56: Education services | Q56: 0.1883799764 | Z56: 0 | AA56: Reportable | AB56: Reportable | AC56: AL10 | AD56: LD7
A57: VIATRIS UK HEALTHCARE LTD | B57: 38089 | C57: N | D57: N | E57: TRUE | F57: GB | G57: N | H57: PRIVATE SECTOR | I57: AL10 9UL | L57: HATFIELD AL10 | M57: Wholesale and retail trade; repair of motor vehicles and motorcycles | N57: 46460 | O57: 46 | P57: Wholesale trade services, except of motor vehicles and motorcycles | Q57: 0.02234131717 | Z57: 0 | AA57: Reportable | AB57: Reportable | AC57: AL10 | AD57: BS1
A58: T MOBILE | B58: 9454 | C58: N | D58: N | E58: TRUE | F58: GB | G58: N | H58: PRIVATE SECTOR | I58: AL10 9BW | L58: HATFIELD AL10 | M58: Information and communication | N58: 62090 | O58: 62 | P58: Computer programming, consultancy and related services | Q58: 0.1532896312 | Z58: 0 | AA58: Reportable | AB58: Reportable | AC58: AL10 | AD58: UB11
A59: INTERACT | B59: 25728 | C59: N | D59: N | E59: TRUE | F59: GB | G59: N | H59: PRIVATE SECTOR | I59: AL2 3BH | L59: ST ALBANS AL2 | M59: Manufacturing | N59: 31090 | O59: 31 | P59: Furniture | Q59: 0.4567961207 | Z59: 0 | AA59: Reportable | AB59: Reportable | AC59: AL2 | AD59: GL7
A60: JMT INDISPLAY LTD | B60: 52197 | C60: N | D60: N | E60: TRUE | F60: GB | G60: N | H60: PRIVATE SECTOR | I60: AL2 2DB | L60: ST ALBANS AL2 | M60: Administrative and support service activities | N60: 77390 | O60: 77 | P60: Rental and leasing services | Q60: 0.177444331 | AA60: Reportable | AB60: Reportable | AC60: AL2 | AD60: CR0
A61: MELLCREST LTD | B61: 35558 | C61: N | D61: N | E61: TRUE | F61: GB | G61: N | H61: PRIVATE SECTOR | I61: AL2 2DD | L61: ST ALBANS AL2 | M61: Other service activities | N61: 96090 | O61: 96 | P61: Other personal services | Q61: 0.09278479264 | Z61: 0 | AA61: Reportable | AB61: Reportable | AC61: AL2 | AD61: EC3R
A62: PETER DYSON LTD | B62: 78768 | C62: N | D62: N | E62: TRUE | F62: GB | G62: Y | H62: PRIVATE SECTOR | I62: AL2 3LB | L62: ST ALBANS AL2 | M62: Human health and social work activities | N62: 86220 | O62: 86 | P62: Human health services | Q62: 0.3203077099 | AA62: Reportable | AB62: Reportable | AC62: AL2 | AD62: CB2
A63: SANTEN UK LTD | B63: 68984 | C63: N | D63: N | E63: TRUE | F63: GB | G63: Y | H63: PRIVATE SECTOR | I63: AL2 1BU | L63: ST ALBANS AL2 | M63: Wholesale and retail trade; repair of motor vehicles and motorcycles | N63: 46190 | O63: 46 | P63: Wholesale trade services, except of motor vehicles and motorcycles | Q63: 0.02234131717 | Z63: 0 | AA63: Reportable | AB63: Reportable | AC63: AL2 | AD63: CF11
A64: SPECIALTY DIAGNOSTIX LTD | B64: 49455 | C64: N | D64: N | E64: TRUE | F64: GB | G64: Y | H64: PRIVATE SECTOR | I64: AL2 1LJ | L64: ST ALBANS AL2 | M64: Wholesale and retail trade; repair of motor vehicles and motorcycles | N64: 46460 | O64: 46 | P64: Wholesale trade services, except of motor vehicles and motorcycles | Q64: 0.02234131717 | Z64: 0 | AA64: Reportable | AB64: Reportable | AC64: AL2 | AD64: W1D
A65: TRIPLE 111 GROUP LTD | B65: 70057 | C65: N | D65: N | E65: TRUE | F65: GB | G65: Y | H65: PRIVATE SECTOR | I65: AL2 1HA | L65: ST ALBANS AL2 | M65: Manufacturing | N65: 21100 | O65: 21 | P65: Basic pharmaceutical products and pharmaceutical preparations | Q65: 0.5812436945 | AA65: Reportable | AB65: Reportable | AC65: AL2 | AD65: LE12
A66: VIGLEN LTD | B66: 3178 | C66: N | D66: N | E66: TRUE | F66: GB | G66: N | H66: PRIVATE SECTOR | I66: AL2 2DQ | L66: ST ALBANS AL2 | M66: Manufacturing | N66: 26200 | O66: 26 | P66: Computer, electronic and optical products | Q66: 0.4038225717 | AA66: Reportable | AB66: Reportable | AC66: AL2
A67: W & H (UK) LTD | B67: 2064 | C67: N | D67: N | E67: TRUE | F67: GB | G67: Y | H67: PRIVATE SECTOR | I67: AL2 2NJ | L67: ST ALBANS AL2 | M67: Manufacturing | N67: 32500 | O67: 32 | P67: Other manufactured goods | Q67: 0.6168414356 | Z67: -0.4661363372 | AA67: Reportable | AB67: Reportable | AC67: AL2 | AD67: BS21
A68: BERRY RECRUITMENT LTD | B68: 50999 | C68: N | D68: N | E68: TRUE | F68: GB | G68: N | H68: PRIVATE SECTOR | I68: AL3 6PQ | L68: ST ALBANS AL3 | M68: Administrative and support service activities | N68: 78200 | O68: 78 | P68: Employment services | Q68: 0.1263554176 | AA68: Reportable | AB68: Reportable | AC68: AL3 | AD68: G81
A69: CENTURY ONE PUBLISHING LTD | B69: 56348 | C69: N | D69: N | E69: TRUE | F69: GB | G69: N | H69: PRIVATE SECTOR | I69: AL3 4DG | L69: ST ALBANS AL3 | M69: Information and communication | N69: 58190 | O69: 58 | P69: Publishing services | Q69: 0.1022139832 | Z69: 0 | AA69: Reportable | AB69: Reportable | AC69: AL3 | AD69: PO6
A70: CHEMBIO LTD | B70: 37922 | C70: N | D70: N | E70: TRUE | F70: GB | G70: N | H70: PRIVATE SECTOR | I70: AL3 6PA | L70: ST ALBANS AL3 | M70: Professional, scientific and technical activities | N70: 74909 | O70: 74 | P70: Other professional, scientific and technical services | Q70: 0.1630132155 | AA70: Reportable | AB70: Reportable | AC70: AL3 | AD70: N1
A71: ENVOSORT (A DIVISION OF BARRETTS INDUSTRIES LTD) | B71: 18392 | C71: N | D71: N | E71: TRUE | F71: GB | G71: Y | H71: PRIVATE SECTOR | I71: AL3 5BH | L71: ST ALBANS AL3 | M71: Manufacturing | N71: 31010 | O71: 31 | P71: Furniture | Q71: 0.4567961207 | Z71: 0 | AA71: Reportable | AB71: Reportable | AC71: AL3 | AD71: SA1
A72: IMPACT PROMOTIONAL MERCHANDISE LTD | B72: 57428 | C72: N | D72: N | E72: TRUE | F72: GB | G72: N | H72: PRIVATE SECTOR | I72: AL3 4ES | L72: ST ALBANS AL3 | M72: Real estate activities | N72: 68209 | O72: 68.2IMP | P72: Owner-Occupiers' Housing Services | Q72: 0.04411221335 | AA72: Reportable | AB72: Reportable | AC72: AL3 | AD72: GU15
A73: MEDICAL GAS TESTING SERVICES LTD | B73: 68143 | C73: N | D73: N | E73: TRUE | F73: GB | G73: Y | H73: PRIVATE SECTOR | I73: AL3 5TD | L73: ST ALBANS AL3 | M73: Professional, scientific and technical activities | N73: 74909 | O73: 74 | P73: Other professional, scientific and technical services | Q73: 0.1630132155 | Z73: 0 | AA73: Reportable | AB73: Reportable | AC73: AL3 | AD73: ME10
A74: OPTIMA LIFE LTD | B74: 60188 | C74: N | D74: N | E74: TRUE | F74: GB | G74: N | H74: PRIVATE SECTOR | I74: AL3 5PA | L74: ST ALBANS AL3 | M74: Human health and social work activities | N74: 86900 | O74: 86 | P74: Human health services | Q74: 0.3203077099 | AA74: Reportable | AB74: Reportable | AC74: AL3 | AD74: CF5
A75: OZCAN SOURCING UK LTD | B75: 69429 | C75: N | D75: N | E75: TRUE | F75: GB | G75: Y | H75: PRIVATE SECTOR | I75: AL3 7DS | L75: ST ALBANS AL3 | M75: Wholesale and retail trade; repair of motor vehicles and motorcycles | N75: 46160 | O75: 46 | P75: Wholesale trade services, except of motor vehicles and motorcycles | Q75: 0.02234131717 | AA75: Reportable | AB75: Reportable | AC75: AL3
A76: TANNER PHARMA UK LTD | B76: 76731 | C76: N | D76: N | E76: TRUE | F76: GB | G76: Y | H76: PRIVATE SECTOR | I76: AL3 7QA | L76: ST ALBANS AL3 | M76: Wholesale and retail trade; repair of motor vehicles and motorcycles | N76: 46460 | O76: 46 | P76: Wholesale trade services, except of motor vehicles and motorcycles | Q76: 0.02234131717 | Z76: 0 | AA76: Reportable | AB76: Reportable | AC76: AL3 | AD76: EC4M
A77: THE CALMER GROUP LTD | B77: 71636 | C77: N | D77: N | E77: TRUE | F77: GB | G77: Y | H77: PRIVATE SECTOR | I77: AL3 4PQ | L77: ST ALBANS AL3 | M77: Education | N77: 85590 | O77: 85 | P77: Education services | Q77: 0.1883799764 | AA77: Reportable | AB77: Reportable | AC77: AL3 | AD77: SA14
A78: VERULAM HEALTH CARE LTD | B78: 73480 | C78: N | D78: N | E78: TRUE | F78: GB | G78: Y | H78: PRIVATE SECTOR | I78: AL3 4DH | L78: ST ALBANS AL3 | M78: Human health and social work activities | N78: 86900 | O78: 86 | P78: Human health services | Q78: 0.3203077099 | Z78: 0 | AA78: Reportable | AB78: Reportable | AC78: AL3 | AD78: LL13
A79: WATERSYSTEMS4U LTD | B79: 78692 | C79: N | D79: N | E79: TRUE | F79: GB | G79: Y | H79: PRIVATE SECTOR | I79: AL3 4PQ | L79: ST ALBANS AL3 | M79: Professional, scientific and technical activities | N79: 70100 | O79: 70 | P79: Services of head offices; management consulting services | Q79: 0.1606219056 | AA79: Reportable | AB79: Reportable | AC79: AL3 | AD79: TS17
A80: WILD RECRUITMENT LTD | B80: 79110 | C80: N | D80: N | E80: TRUE | F80: GB | G80: Y | H80: PRIVATE SECTOR | I80: AL3 6PQ | L80: ST ALBANS AL3 | M80: Administrative and support service activities | N80: 78200 | O80: 78 | P80: Employment services | Q80: 0.1263554176 | AA80: Reportable | AB80: Reportable | AC80: AL3 | AD80: BN1
A81: WASP BARCODE TECHNOLOGIES LTD | B81: 72404 | C81: N | D81: N | E81: TRUE | F81: GB | G81: Y | H81: PRIVATE SECTOR | I81: AL3 7PR | L81: ST ALBANS AL3 | M81: Information and communication | N81: 62090 | O81: 62 | P81: Computer programming, consultancy and related services | Q81: 0.1532896312 | Z81: 0 | AA81: Reportable | AB81: Reportable | AC81: AL3 | AD81: EC4N
A82: ARX SOLUTIONS LTD | B82: 61560 | C82: N | D82: N | E82: TRUE | F82: GB | G82: Y | H82: PRIVATE SECTOR | I82: AL4 9QT | L82: ST ALBANS AL4 | M82: Manufacturing | N82: 33200 | O82: 33OTHER | P82: Rest of repair; Installation - 33.11-14/17/19/20 | Q82: 0.2054836704 | Z82: 0 | AA82: Reportable | AB82: Reportable | AC82: AL4 | AD82: SL9
A83: ENVIROSCREEN SYSTEMS LLP | B83: 54285 | C83: N | D83: N | E83: TRUE | F83: GB | G83: N | H83: PRIVATE SECTOR | I83: AL4 9QT | L83: ST ALBANS AL4 | M83: Professional, scientific and technical activities | N83: 72190 | O83: 71 | P83: Architectural and engineering services; technical testing and analysis services | Q83: 0.1976741543 | Z83: 0 | AA83: Reportable | AB83: Reportable | AC83: AL4 | AD83: NP20
A84: LYDIA A DEAN | B84: 61618 | C84: N | D84: N | E84: TRUE | F84: GB | G84: N | H84: PRIVATE SECTOR | I84: AL4 0HS | L84: ST ALBANS AL4 | M84: Information and communication | N84: 58110 | O84: 58 | P84: Publishing services | Q84: 0.1022139832 | Z84: 0 | AA84: Reportable | AB84: Reportable | AC84: AL4 | AD84: CF15
A85: MERIDIAN COST BENEFIT LTD | B85: 58356 | C85: N | D85: N | E85: TRUE | F85: GB | G85: Y | H85: PRIVATE SECTOR | I85: AL4 0PG | L85: ST ALBANS AL4 | M85: Professional, scientific and technical activities | N85: 70229 | O85: 70 | P85: Services of head offices; management consulting services | Q85: 0.1606219056 | AA85: Reportable | AB85: Reportable | AC85: AL4 | AD85: SA6
A86: WALTERS MEDICAL | B86: 37722 | C86: N | D86: N | E86: TRUE | F86: GB | G86: Y | H86: PRIVATE SECTOR | I86: AL4 0JJ | L86: ST ALBANS AL4 | M86: Wholesale and retail trade; repair of motor vehicles and motorcycles | N86: 46760 | O86: 46 | P86: Wholesale trade services, except of motor vehicles and motorcycles | Q86: 0.02234131717 | AA86: Reportable | AB86: Reportable | AC86: AL4 | AD86: BH17
A87: BERTHOLD TECHNOLOGIES (UK) LTD | B87: 31964 | C87: N | D87: N | E87: TRUE | F87: GB | G87: Y | H87: PRIVATE SECTOR | I87: AL5 4UT | L87: HARPENDEN AL5 | M87: Manufacturing | N87: 27900 | O87: 27 | P87: Electrical equipment | Q87: 0.4378085751 | Z87: 0 | AA87: Reportable | AB87: Reportable | AC87: AL5 | AD87: EC1M
A88: CHURCHILL CONTRACT SERVICES LTD | B88: 65147 | C88: N | D88: N | E88: TRUE | F88: GB | G88: N | H88: PRIVATE SECTOR | I88: AL5 4UN | L88: HARPENDEN AL5 | M88: Administrative and support service activities | N88: 81299 | O88: 81 | P88: Services to buildings and landscape | Q88: 0.1929228047 | Z88: 0 | AA88: Reportable | AB88: Reportable | AC88: AL5 | AD88: EC1Y
A89: CHURCHILL ENVIRONMENTAL SERVICES LTD | B89: 47631 | C89: N | D89: N | E89: TRUE | F89: GB | G89: Y | H89: PRIVATE SECTOR | I89: AL5 4UN | L89: HARPENDEN AL5 | M89: Administrative and support service activities | N89: 80300 | O89: 80 | P89: Security and investigation services | Q89: 0.1120917125 | AA89: Reportable | AB89: Reportable | AC89: AL5 | AD89: LE10
A90: DRAINCARE LTD | B90: 55028 | C90: N | D90: N | E90: TRUE | F90: GB | G90: N | H90: PRIVATE SECTOR | I90: AL5 5BZ | L90: HARPENDEN AL5 | M90: Water supply; sewerage, waste management and remediation activities | N90: 37000 | O90: 37 | P90: Sewerage services; sewage sludge | Q90: 0.3970268022 | Z90: 0 | AA90: Reportable | AB90: Reportable | AC90: AL5 | AD90: SA19
A91: FORMECH INTERNATIONAL LTD | B91: 53878 | C91: N | D91: N | E91: TRUE | F91: GB | G91: N | H91: PRIVATE SECTOR | I91: AL5 3NS | L91: HARPENDEN AL5 | M91: Manufacturing | N91: 28960 | O91: 28 | P91: Machinery and equipment n.e.c. | Q91: 0.4452676908 | Z91: 0 | AA91: Reportable | AB91: Reportable | AC91: AL5 | AD91: SA33
A92: GLOBAL RESOURCING LTD | B92: 71754 | C92: N | D92: N | E92: TRUE | F92: GB | G92: Y | H92: PRIVATE SECTOR | I92: AL5 4US | L92: HARPENDEN AL5 | M92: Administrative and support service activities | N92: 78200 | O92: 78 | P92: Employment services | Q92: 0.1263554176 | Z92: 0 | AA92: Reportable | AB92: Reportable | AC92: AL5 | AD92: EH15
A93: KEY PHOTO | B93: 22658 | C93: N | D93: N | E93: TRUE | F93: GB | G93: N | H93: PRIVATE SECTOR | I93: AL5 4UT | L93: HARPENDEN AL5 | M93: Wholesale and retail trade; repair of motor vehicles and motorcycles | N93: 46510 | O93: 46 | P93: Wholesale trade services, except of motor vehicles and motorcycles | Q93: 0.02234131717 | AA93: Reportable | AB93: Reportable | AC93: AL5 | AD93: BN42
A94: OMNIPLEX LTD | B94: 13685 | C94: N | D94: N | E94: TRUE | F94: GB | G94: N | H94: PRIVATE SECTOR | I94: AL5 3NS | L94: HARPENDEN AL5 | M94: Information and communication | N94: 62020 | O94: 62 | P94: Computer programming, consultancy and related services | Q94: 0.1532896312 | Z94: 0 | AA94: Reportable | AB94: Reportable | AC94: AL5 | AD94: SA3
A95: MITOGEN LTD | B95: 62533 | C95: N | D95: N | E95: TRUE | F95: GB | G95: N | H95: PRIVATE SECTOR | I95: AL5 3BP | L95: HARPENDEN AL5 | M95: Professional, scientific and technical activities | N95: 74909 | O95: 74 | P95: Other professional, scientific and technical services | Q95: 0.1630132155 | AA95: Reportable | AB95: Reportable | AC95: AL5 | AD95: BS2
A96: PROMEDICUS LTD | B96: 55401 | C96: N | D96: N | E96: TRUE | F96: GB | G96: N | H96: PRIVATE SECTOR | I96: AL5 3NS | L96: HARPENDEN AL5 | M96: Human health and social work activities | N96: 86900 | O96: 86 | P96: Human health services | Q96: 0.3203077099 | AA96: Reportable | AB96: Reportable | AC96: AL5 | AD96: SN12
A97: RORY BOLTON | B97: 57488 | C97: N | D97: N | E97: TRUE | F97: GB | G97: N | H97: PRIVATE SECTOR | I97: AL5 1EF | L97: HARPENDEN AL5 | M97: Human health and social work activities | N97: 86000 | O97: 86 | P97: Human health services | Q97: 0.3203077099 | AA97: Reportable | AB97: Reportable | AC97: AL5 | AD97: NP16
A98: SB ELECTRONIC SYSTEMS LTD | B98: 10953 | C98: N | D98: N | E98: TRUE | F98: GB | G98: N | H98: PRIVATE SECTOR | I98: AL5 4SL | L98: HARPENDEN AL5 | M98: Manufacturing | N98: 26200 | O98: 26 | P98: Computer, electronic and optical products | Q98: 0.4038225717 | Z98: -0.3673673832 | AA98: Reportable | AB98: Reportable | AC98: AL5 | AD98: WV16
A99: IT ASSET MANAGEMENT SOLUTIONS LTD | B99: 53165 | C99: N | D99: N | E99: TRUE | F99: GB | G99: N | H99: PRIVATE SECTOR | I99: AL5 4UN | L99: HARPENDEN AL5 | M99: Information and communication | N99: 62090 | O99: 62 | P99: Computer programming, consultancy and related services | Q99: 0.1532896312 | Z99: 0 | AA99: Reportable | AB99: Reportable | AC99: AL5 | AD99: LE5
A100: SOILEX ENVIRONMENTAL LTD | B100: 78486 | C100: N | D100: N | E100: TRUE | F100: GB | G100: Y | H100: PRIVATE SECTOR | I100: AL5 2JQ | L100: HARPENDEN AL5 | M100: Professional, scientific and technical activities | N100: 74901 | O100: 74 | P100: Other professional, scientific and technical services | Q100: 0.1630132155 | AA100: Reportable | AB100: Reportable | AC100: AL5 | AD100: SA46
A101: THE HUMAN MILK FOUNDATION | B101: 73509 | C101: N | D101: N | E101: TRUE | F101: GB | G101: Y | H101: VCSE | I101: AL5 2JQ | L101: HARPENDEN AL5 | M101: Other service activities | N101: 96090 | O101: 96 | P101: Other personal services | Q101: 0.09278479264 | AA101: Reportable | AB101: Reportable | AC101: AL5 | AD101: SA15
A102: THE YELLOW CHAIR LTD | B102: 69717 | C102: N | D102: N | E102: TRUE | F102: GB | G102: Y | H102: PRIVATE SECTOR | I102: AL5 3BP | L102: HARPENDEN AL5 | M102: Administrative and support service activities | N102: 82990 | O102: 82 | P102: Office administrative, office support and other business support services | Q102: 0.1892020832 | AA102: Reportable | AB102: Reportable | AC102: AL5 | AD102: BA1
A103: VORTEX DESIGNS LTD | B103: 63799 | C103: N | D103: N | E103: TRUE | F103: GB | G103: Y | H103: PRIVATE SECTOR | I103: AL5 1NL | L103: HARPENDEN AL5 | M103: Other service activities | N103: 96090 | O103: 96 | P103: Other personal services | Q103: 0.09278479264 | AA103: Reportable | AB103: Reportable | AC103: AL5 | AD103: LL18
A104: DENTAL PRACTICE SYSTEMS | B104: 15825 | C104: N | D104: N | E104: TRUE | F104: GB | G104: N | H104: PRIVATE SECTOR | I104: AL6 9BP | L104: WELWYN AL6 | M104: Manufacturing | N104: 32500 | O104: 32 | P104: Other manufactured goods | Q104: 0.6168414356 | Z104: 0 | AA104: Reportable | AB104: Reportable | AC104: AL6 | AD104: LE16
A105: GCH HERTFORDSHIRE LTD TA HEATH LODGE | B105: 73602 | C105: N | D105: N | E105: TRUE | F105: GB | G105: Y | H105: PRIVATE SECTOR | I105: AL6 9SN | L105: WELWYN AL6 | M105: Human health and social work activities | N105: 87100 | O105: 87 | P105: Residential care services | Q105: 0.2139303078 | Z105: 0 | AA105: Reportable | AB105: Reportable | AC105: AL6 | AD105: LL18
A106: MAYO LEARNING INTERNATIONAL LTD | B106: 56572 | C106: N | D106: N | E106: TRUE | F106: GB | G106: N | H106: PRIVATE SECTOR | I106: AL6 0QX | L106: WELWYN AL6 | M106: Professional, scientific and technical activities | N106: 70229 | O106: 70 | P106: Services of head offices; management consulting services | Q106: 0.1606219056 | Z106: 0 | AA106: Reportable | AB106: Reportable | AC106: AL6 | AD106: WF2
A107: RIS PRODUCTS LTD | B107: 41770 | C107: N | D107: N | E107: TRUE | F107: GB | G107: N | H107: PRIVATE SECTOR | I107: AL6 9EW | L107: WELWYN AL6 | M107: Wholesale and retail trade; repair of motor vehicles and motorcycles | N107: 46460 | O107: 46 | P107: Wholesale trade services, except of motor vehicles and motorcycles | Q107: 0.02234131717 | Z107: 0 | AA107: Reportable | AB107: Reportable | AC107: AL6 | AD107: NN4
A108: APC MEDICAL LTD | B108: 1270 | C108: N | D108: N | E108: TRUE | F108: GB | G108: N | H108: PRIVATE SECTOR | I108: AL7 1BD | L108: WELWYN AL7 | M108: Manufacturing | N108: 32500 | O108: 32 | P108: Other manufactured goods | Q108: 0.6168414356 | Z108: 0 | AA108: Reportable | AB108: Reportable | AC108: AL7 | AD108: LE1
A109: CLOCK CRICKET CIC | B109: 73868 | C109: N | D109: N | E109: TRUE | F109: GB | G109: Y | H109: VCSE | I109: AL7 1UL | L109: WELWYN AL7 | M109: Arts, entertainment and recreation | N109: 93199 | O109: 93 | P109: Sports services and amusement and recreation services | Q109: 0.291217442 | Z109: 0 | AA109: Reportable | AB109: Reportable | AC109: AL7 | AD109: HA1
A110: DIGITIMER LTD | B110: 3499 | C110: N | D110: N | E110: TRUE | F110: GB | G110: Y | H110: PRIVATE SECTOR | I110: AL7 3BE | L110: WELWYN AL7 | M110: Manufacturing | N110: 32500 | O110: 32 | P110: Other manufactured goods | Q110: 0.6168414356 | Z110: 0 | AA110: Reportable | AB110: Reportable | AC110: AL7 | AD110: BS3
A111: DR KEN DARZY | B111: 73482 | C111: N | D111: N | E111: TRUE | F111: GB | G111: Y | H111: PRIVATE SECTOR | I111: AL7 4HQ | L111: WELWYN AL7 | M111: Wholesale and retail trade; repair of motor vehicles and motorcycles | N111: 47910 | O111: 47 | P111: Retail trade services, except of motor vehicles and motorcycles | Q111: 0.193105719 | Z111: 0 | AA111: Reportable | AB111: Reportable | AC111: AL7 | AD111: SA4
A112: DUCTCLEAN (UK) LTD | B112: 54063 | C112: N | D112: N | E112: TRUE | F112: GB | G112: N | H112: PRIVATE SECTOR | I112: AL7 1JQ | L112: WELWYN AL7 | M112: Construction | N112: 43999 | O112: 42.99 | P112: Specialised construction works | Q112: 0.3123398822 | Z112: 0 | AA112: Reportable | AB112: Reportable | AC112: AL7 | AD112: SG19
A113: ECRI EUROPEAN OFFICE | B113: 9825 | C113: N | D113: N | E113: TRUE | F113: GB | G113: N | H113: PRIVATE SECTOR | I113: AL7 2AA | L113: WELWYN AL7 | M113: Human health and social work activities | N113: 86101 | O113: 86 | P113: Human health services | Q113: 0.3203077099 | Z113: 0 | AA113: Reportable | AB113: Reportable | AC113: AL7 | AD113: SA2
A114: EXPO PORTABLE LTD | B114: 74268 | C114: N | D114: N | E114: TRUE | F114: GB | G114: Y | H114: PRIVATE SECTOR | I114: AL7 1JU | L114: WELWYN AL7 | M114: Administrative and support service activities | N114: 82301 | O114: 82 | P114: Office administrative, office support and other business support services | Q114: 0.1892020832 | Z114: 0 | AA114: Reportable | AB114: Reportable | AC114: AL7 | AD114: NG2
A115: FINETECH MEDICAL LTD | B115: 54961 | C115: N | D115: N | E115: TRUE | F115: GB | G115: N | H115: PRIVATE SECTOR | I115: AL7 1AU | L115: WELWYN AL7 | M115: Manufacturing | N115: 32990 | O115: 32 | P115: Other manufactured goods | Q115: 0.6168414356 | Z115: 0 | AA115: Reportable | AB115: Reportable | AC115: AL7 | AD115: SA2
A116: GEEMARC TELECOM SA | B116: 61467 | C116: N | D116: N | E116: TRUE | F116: GB | G116: Y | H116: PRIVATE SECTOR | I116: AL7 1SB | L116: WELWYN AL7 | M116: Information and communication | N116: 61000 | O116: 61 | P116: Telecommunications services | Q116: 0.1732097315 | AA116: Reportable | AB116: Reportable | AC116: AL7 | AD116: CF15
A117: HD WORKWEAR LTD | B117: 77027 | C117: N | D117: N | E117: TRUE | F117: GB | G117: Y | H117: PRIVATE SECTOR | I117: AL7 1WL | L117: WELWYN AL7 | M117: Wholesale and retail trade; repair of motor vehicles and motorcycles | N117: 46420 | O117: 46 | P117: Wholesale trade services, except of motor vehicles and motorcycles | Q117: 0.02234131717 | Z117: 0 | AA117: Reportable | AB117: Reportable | AC117: AL7 | AD117: NG24
A118: HENLEYS MEDICAL SUPPLIES LTD | B118: 143 | C118: N | D118: N | E118: TRUE | F118: GB | G118: Y | H118: PRIVATE SECTOR | I118: AL7 1AN | L118: WELWYN AL7 | M118: Manufacturing | N118: 32500 | O118: 32 | P118: Other manufactured goods | Q118: 0.6168414356 | R118: 2023 | S118: 84000 | T118: 17700 | U118: 2138400 | V118: =2240.1*1000 -> 2240100 | W118: 6170628 | X118: =V118/W118 -> 0.3630262592 | Z118: 0 | AA118: Reportable | AB118: Reportable | AC118: AL7 | AD118: SA9
A119: HERTS URGENT CARE LTD | B119: 67039 | C119: N | D119: N | E119: TRUE | F119: GB | G119: Y | H119: PRIVATE SECTOR | I119: AL7 4HL | L119: WELWYN AL7 | M119: Human health and social work activities | N119: 86900 | O119: 86 | P119: Human health services | Q119: 0.3203077099 | Z119: 0 | AA119: Reportable | AB119: Reportable | AC119: AL7 | AD119: EN3
A120: INDEPENDENT LIVING SUPPLIES LTD | B120: 57372 | C120: N | D120: N | E120: TRUE | F120: GB | G120: N | H120: PRIVATE SECTOR | I120: AL7 2AA | L120: WELWYN AL7 | M120: Information and communication | N120: 61900 | O120: 61 | P120: Telecommunications services | Q120: 0.1732097315 | AA120: Reportable | AB120: Reportable | AC120: AL7 | AD120: CF83
A121: ISABEL HOSPICE LTD | B121: 75807 | C121: N | D121: N | E121: TRUE | F121: GB | G121: Y | H121: VCSE | I121: AL7 1JR | L121: WELWYN AL7 | M121: Human health and social work activities | N121: 86900 | O121: 86 | P121: Human health services | Q121: 0.3203077099 | Z121: 0 | AA121: Reportable | AB121: Reportable | AC121: AL7 | AD121: RG1
A122: JUST RECRUIT GROUP LTD | B122: 54704 | C122: N | D122: N | E122: TRUE | F122: GB | G122: N | H122: PRIVATE SECTOR | I122: AL7 1HL | L122: WELWYN AL7 | M122: Administrative and support service activities | N122: 78200 | O122: 78 | P122: Employment services | Q122: 0.1263554176 | Z122: 0 | AA122: Reportable | AB122: Reportable | AC122: AL7 | AD122: LN6
A123: KANE INTERNATIONAL LTD | B123: 15598 | C123: N | D123: N | E123: TRUE | F123: GB | G123: N | H123: PRIVATE SECTOR | I123: AL7 1GF | L123: WELWYN AL7 | M123: Manufacturing | N123: 26511 | O123: 26 | P123: Computer, electronic and optical products | Q123: 0.4038225717 | Z123: 0 | AA123: Reportable | AB123: Reportable | AC123: AL7 | AD123: LL56
A124: MIRAGE HEALTHGROUP LTD | B124: 23161 | C124: N | D124: N | E124: TRUE | F124: GB | G124: N | H124: PRIVATE SECTOR | I124: AL7 1EW | L124: WELWYN AL7 | M124: Wholesale and retail trade; repair of motor vehicles and motorcycles | N124: 46180 | O124: 46 | P124: Wholesale trade services, except of motor vehicles and motorcycles | Q124: 0.02234131717 | Z124: 0 | AA124: Reportable | AB124: Reportable | AC124: AL7 | AD124: LL13
A125: PAKEX (UK) PLC | B125: 64132 | C125: N | D125: N | E125: TRUE | F125: GB | G125: N | H125: PRIVATE SECTOR | I125: AL7 1FE | L125: WELWYN AL7 | M125: Administrative and support service activities | N125: 82920 | O125: 82 | P125: Office administrative, office support and other business support services | Q125: 0.1892020832 | Z125: 0 | AA125: Reportable | AB125: Reportable | AC125: AL7 | AD125: NP23
A126: ROCHE PRODUCTS LTD | B126: 253 | C126: N | D126: N | E126: TRUE | F126: GB | G126: N | H126: PRIVATE SECTOR | I126: AL7 1TW | L126: WELWYN AL7 | M126: Professional, scientific and technical activities | N126: 72190 | O126: 72 | P126: Scientific research and development services | Q126: 0.2216321284 | R126: 2025 | S126: =1565*1000 -> 1565000 | T126: 0 | U126: =84266.35*1000 -> 84266350 | V126: =SUM(S126:U126) -> 85831350 | W126: =729004*1000 -> 729004000 | X126: =V126/W126 -> 0.1177378313 | Z126: 0 | AA126: Reportable | AB126: Reportable | AC126: AL7 | AD126: NP16
A127: SAEBO UK LTD | B127: 31940 | C127: N | D127: N | E127: TRUE | F127: GB | G127: Y | H127: PRIVATE SECTOR | I127: AL7 2AA | L127: WELWYN AL7 | M127: Human health and social work activities | N127: 86900 | O127: 86 | P127: Human health services | Q127: 0.3203077099 | Z127: 0 | AA127: Reportable | AB127: Reportable | AC127: AL7 | AD127: CF14
A128: SARATOTA LTD | B128: 70773 | C128: N | D128: N | E128: TRUE | F128: GB | G128: Y | H128: PRIVATE SECTOR | I128: AL7 2AA | L128: WELWYN AL7 | M128: Administrative and support service activities | N128: 82990 | O128: 82 | P128: Office administrative, office support and other business support services | Q128: 0.1892020832 | Z128: 0 | AA128: Reportable | AB128: Reportable | AC128: AL7 | AD128: SA13
A129: BROOKDALE CARE | B129: 30091 | C129: N | D129: N | E129: TRUE | F129: GB | G129: N | H129: PRIVATE SECTOR | I129: AL8 6HG | L129: WELWYN AL8 | M129: Human health and social work activities | N129: 88100 | O129: 88 | P129: Social work services without accommodation | Q129: 0.2283360797 | AA129: Reportable | AB129: Reportable | AC129: AL8 | AD129: LL14
A130: EUROPEAN NURSING AGENCY LTD | B130: 73939 | C130: N | D130: N | E130: TRUE | F130: GB | G130: Y | H130: VCSE | I130: AL8 7SR | L130: WELWYN AL8 | M130: Administrative and support service activities | N130: 82990 | O130: 82 | P130: Office administrative, office support and other business support services | Q130: 0.1892020832 | AA130: Reportable | AB130: Reportable | AC130: AL8 | AD130: NP12
A131: HEREFORDSHIRE PRIMARY CARE TRUST | B131: 42861 | C131: N | D131: N | E131: TRUE | F131: GB | G131: N | H131: PUBLIC SECTOR | I131: AL8 6SL | L131: WELWYN AL8 | M131: Human health and social work activities | N131: 86900 | O131: 86 | P131: Human health services | Q131: 0.3203077099 | AA131: Reportable | AB131: Reportable | AC131: AL8 | AD131: CF14
A132: SJ SOURCING LTD | B132: 71138 | C132: N | D132: N | E132: TRUE | F132: GB | G132: Y | H132: PRIVATE SECTOR | I132: AL8 7SR | L132: WELWYN AL8 | M132: Administrative and support service activities | N132: 78200 | O132: 78 | P132: Employment services | Q132: 0.1263554176 | Z132: 0 | AA132: Reportable | AB132: Reportable | AC132: AL8 | AD132: SA2
A133: CASTLE STANTON LTD | B133: 56070 | C133: N | D133: N | E133: TRUE | F133: GB | G133: N | H133: PRIVATE SECTOR | I133: AL9 7HN | L133: HATFIELD AL9 | M133: Administrative and support service activities | N133: 77390 | O133: 77 | P133: Rental and leasing services | Q133: 0.177444331 | Z133: 0 | AA133: Reportable | AB133: Reportable | AC133: AL9 | AD133: BS16
A134: DREAMSKIN HEALTH LTD | B134: 65177 | C134: N | D134: N | E134: TRUE | F134: GB | G134: Y | H134: PRIVATE SECTOR | I134: AL9 5NB | L134: HATFIELD AL9 | M134: Manufacturing | N134: 21100 | O134: 21 | P134: Basic pharmaceutical products and pharmaceutical preparations | Q134: 0.5812436945 | Z134: 0 | AA134: Reportable | AB134: Reportable | AC134: AL9 | AD134: LL53
A135: E SERVICE (EUROPE) LTD | B135: 61204 | C135: N | D135: N | E135: TRUE | F135: GB | G135: N | H135: PRIVATE SECTOR | I135: AL9 7JL | L135: HATFIELD AL9 | M135: Manufacturing | N135: 33190 | O135: 33OTHER | P135: Rest of repair; Installation - 33.11-14/17/19/20 | Q135: 0.2054836704 | Z135: 0 | AA135: Reportable | AB135: Reportable | AC135: AL9 | AD135: HG1
A136: THOMSON SOFTWARE SOLUTIONS | B136: 30424 | C136: N | D136: N | E136: TRUE | F136: GB | G136: Y | H136: PRIVATE SECTOR | I136: AL9 7DW | L136: HATFIELD AL9 | M136: Information and communication | N136: 62012 | O136: 62 | P136: Computer programming, consultancy and related services | Q136: 0.1532896312 | Z136: 0 | AA136: Reportable | AB136: Reportable | AC136: AL9 | AD136: NP4
A137: ENABLE ACCESS | B137: 57506 | C137: N | D137: N | E137: TRUE | F137: GB | G137: N | H137: PRIVATE SECTOR | I137: AL9 5SD | L137: HATFIELD AL9 | M137: Manufacturing | N137: 32000 | O137: 32 | P137: Other manufactured goods | Q137: 0.6168414356 | AA137: Reportable | AB137: Reportable | AC137: AL9 | AD137: CA10
A138: EUROCOIN LTD | B138: 59571 | C138: N | D138: N | E138: TRUE | F138: GB | G138: N | H138: PRIVATE SECTOR | I138: AL9 7JL | L138: HATFIELD AL9 | M138: Information and communication | N138: 63110 | O138: 63 | P138: Information services | Q138: 0.1996570494 | AA138: Reportable | AB138: Reportable | AC138: AL9 | AD138: LE11
A139: FAMILY LIVES | B139: 75766 | C139: N | D139: N | E139: TRUE | F139: GB | G139: Y | H139: VCSE | I139: AL9 5HZ | L139: HATFIELD AL9 | M139: Human health and social work activities | N139: 88990 | O139: 88 | P139: Social work services without accommodation | Q139: 0.2283360797 | Z139: 0 | AA139: Reportable | AB139: Reportable | AC139: AL9 | AD139: CF14
A140: FOCUS TROVEX LLP | B140: 67043 | C140: N | D140: N | E140: TRUE | F140: GB | G140: Y | H140: PRIVATE SECTOR | I140: AL9 7JL | L140: HATFIELD AL9 | M140: Human health and social work activities | N140: 86900 | O140: 86 | P140: Human health services | Q140: 0.3203077099 | AA140: Reportable | AB140: Reportable | AC140: AL9 | AD140: EC4A
A141: WOODS ASBESTOS ABATEMENT | B141: 42697 | C141: N | D141: N | E141: TRUE | F141: GB | G141: N | H141: PRIVATE SECTOR | I141: AL9 7ST | L141: HATFIELD AL9 | M141: Water supply; sewerage, waste management and remediation activities | N141: 39000 | O141: 39 | P141: Remediation services and other waste management services | Q141: 3.443309599 | AA141: Reportable | AB141: Reportable | AC141: AL9 | AD141: NP15
A142: ZENITH HYGIENE GROUP LTD | B142: 26396 | C142: N | D142: N | E142: TRUE | F142: GB | G142: N | H142: PRIVATE SECTOR | I142: AL9 7JE | L142: HATFIELD AL9 | M142: Manufacturing | N142: 20411 | O142: 20.4 | P142: Soap and detergents, cleaning and polishing preparations, perfumes and toilet preparations | Q142: 0.8365840476 | Z142: 0 | AA142: Reportable | AB142: Reportable | AC142: AL9 | AD142: LD5
A143: A4 MTS MIDLANDS LTD | B143: 55030 | C143: N | D143: N | E143: TRUE | F143: GB | G143: N | H143: PRIVATE SECTOR | I143: B1 1TW | L143: BIRMINGHA B1 | M143: Administrative and support service activities | N143: 82990 | O143: 82 | P143: Office administrative, office support and other business support services | Q143: 0.1892020832 | Z143: 0 | AA143: Reportable | AB143: Reportable | AC143: B1 | AD143: G1
A144: ADVANCED BUSINESS SOFTWARE AND SOLUTIONS LTD | B144: 75907 | C144: N | D144: N | E144: TRUE | F144: GB | G144: N | H144: PRIVATE SECTOR | I144: B1 1RF | L144: BIRMINGHA B1 | M144: Professional, scientific and technical activities | N144: 74990 | O144: 74 | P144: Other professional, scientific and technical services | Q144: 0.1630132155 | Z144: 0 | AA144: Reportable | AB144: Reportable | AC144: B1 | AD144: CH7
A145: ASSOCIATION OF PHARMACY TECHNICIANS (UK) | B145: 55212 | C145: N | D145: N | E145: TRUE | F145: GB | G145: N | H145: PRIVATE SECTOR | I145: B1 1BD | L145: BIRMINGHA B1 | M145: Professional, scientific and technical activities | N145: 74909 | O145: 74 | P145: Other professional, scientific and technical services | Q145: 0.1630132155 | Z145: 0 | AA145: Reportable | AB145: Reportable | AC145: B1 | AD145: M33
A146: AVISON YOUNG (UK) LTD | B146: 5876 | C146: N | D146: N | E146: TRUE | F146: GB | G146: N | H146: PRIVATE SECTOR | I146: B1 2JB | L146: BIRMINGHA B1 | M146: Real estate activities | N146: 68310 | O146: 68.3 | P146: Real estate services on a fee or contract basis | Q146: 0.1039991429 | AA146: Reportable | AB146: Reportable | AC146: B1 | AD146: EX2
A147: BIRMINGHAM & SOLIHULL MENTAL HEALTH NHS TRUST | B147: 20040 | C147: 0 | F147: GB | G147: N | H147: PUBLIC SECTOR | I147: B1 3RB | L147: BIRMINGHA B1 | Z147: 0 | AA147: Exclude | AB147: Exclude- Intra NHS | AC147: B1 | AD147: ST4
A148: COHORT SOFTWARE LTD | B148: 46162 | C148: N | D148: N | E148: TRUE | F148: GB | G148: Y | H148: PRIVATE SECTOR | I148: B1 2LP | L148: BIRMINGHA B1 | M148: Information and communication | N148: 62012 | O148: 62 | P148: Computer programming, consultancy and related services | Q148: 0.1532896312 | AA148: Reportable | AB148: Reportable | AC148: B1 | AD148: NP19
A149: COMPASS COMPUTER CONSULTANTS LTD | B149: 76957 | C149: N | D149: N | E149: TRUE | F149: GB | G149: Y | H149: PRIVATE SECTOR | I149: B1 1RF | L149: BIRMINGHA B1 | M149: Information and communication | N149: 62012 | O149: 62 | P149: Computer programming, consultancy and related services | Q149: 0.1532896312 | AA149: Reportable | AB149: Reportable | AC149: B1 | AD149: SA3
A150: COOKSON PRECIOUS METALS LTD | B150: 1797 | C150: N | D150: N | E150: TRUE | F150: GB | G150: N | H150: PRIVATE SECTOR | I150: B1 3NZ | L150: BIRMINGHA B1 | M150: Manufacturing | N150: 25990 | O150: 25OTHER | P150: Fabricated metal products, excl. machinery and equipment and weapons & ammunition - 25.1-3/25.5-9 | Q150: 0.5753449887 | Z150: 0 | AA150: Reportable | AB150: Reportable | AC150: B1 | AD150: EC1M
A151: CROWD TECHNOLOGIES LTD T/A CROWDCONTROLHQ | B151: 62931 | C151: N | D151: Y | E151: Removal of a False Welsh Supplier | F151: GB | G151: Y | H151: PRIVATE SECTOR | I151: B1 3LD | L151: BIRMINGHA B1 | M151: Financial and insurance activities | N151: 66300 | O151: 66 | P151: Services auxiliary to financial services and insurance services | Q151: 0.09689386488 | AA151: Reportable | AB151: Reportable | AC151: B1 | AD151: LL18
A152: DOWDING & PLUMMER LTD | B152: 9771 | C152: N | D152: N | E152: TRUE | F152: GB | G152: N | H152: PRIVATE SECTOR | I152: B1 2JB | L152: BIRMINGHA B1 | M152: Manufacturing | N152: 27900 | O152: 27 | P152: Electrical equipment | Q152: 0.4378085751 | AA152: Reportable | AB152: Reportable | AC152: B1 | AD152: IP12
A153: DR CHANDAN ALADAKATTI | B153: 70708 | C153: N | D153: N | E153: TRUE | F153: GB | G153: Y | H153: PRIVATE SECTOR | I153: B1 3BH | L153: BIRMINGHA B1 | M153: Human health and social work activities | N153: 86000 | O153: 86 | P153: Human health services | Q153: 0.3203077099 | Z153: 0 | AA153: Reportable | AB153: Reportable | AC153: B1 | AD153: HD2
A154: ADVANCED HEALTH & CARE LTD | B154: 43684 | C154: N | D154: N | E154: TRUE | F154: GB | G154: N | H154: PRIVATE SECTOR | I154: B1 1RF | L154: BIRMINGHA B1 | M154: Information and communication | N154: 62020 | O154: 62 | P154: Computer programming, consultancy and related services | Q154: 0.1532896312 | AA154: Reportable | AB154: Reportable | AC154: B1 | AD154: ME14
A155: GLEN HILL | B155: 61149 | C155: N | D155: N | E155: TRUE | F155: GB | G155: N | H155: PRIVATE SECTOR | I155: B1 2NW | L155: BIRMINGHA B1 | M155: Professional, scientific and technical activities | N155: 70229 | O155: 70 | P155: Services of head offices; management consulting services | Q155: 0.1606219056 | AA155: Reportable | AB155: Reportable | AC155: B1 | AD155: SO40
A156: IET SERVICES LTD | B156: 59181 | C156: N | D156: N | E156: TRUE | F156: GB | G156: N | H156: PRIVATE SECTOR | I156: B1 2NP | L156: BIRMINGHA B1 | M156: Professional, scientific and technical activities | N156: 74909 | O156: 74 | P156: Other professional, scientific and technical services | Q156: 0.1630132155 | AA156: Reportable | AB156: Reportable | AC156: B1 | AD156: SY17
A157: LEONARDO HOTEL MANAGEMENT UK LTD | B157: 3575 | C157: N | D157: N | E157: TRUE | F157: GB | G157: N | H157: PRIVATE SECTOR | I157: B1 2HQ | L157: BIRMINGHA B1 | M157: Accommodation and food service activities | N157: 55100 | O157: 55 | P157: Accommodation services | Q157: 0.3406388606 | AA157: Reportable | AB157: Reportable | AC157: B1 | AD157: NN3
A158: PGP (UK) LTD | B158: 6812 | C158: N | D158: N | E158: TRUE | F158: GB | G158: N | H158: PRIVATE SECTOR | I158: B1 2JB | L158: BIRMINGHA B1 | M158: Information and communication | N158: 62020 | O158: 62 | P158: Computer programming, consultancy and related services | Q158: 0.1532896312 | Z158: 0 | AA158: Reportable | AB158: Reportable | AC158: B1 | AD158: NP44
A159: LOMBARD VEHICLE MANAGEMENT LTD | B159: 1667 | C159: N | D159: N | E159: TRUE | F159: GB | G159: N | H159: PRIVATE SECTOR | I159: B1 2TZ | L159: BIRMINGHA B1 | M159: Financial and insurance activities | N159: 64921 | O159: 64 | P159: Financial services, except insurance and pension funding | Q159: 0.1192820911 | Z159: 0 | AA159: Reportable | AB159: Reportable | AC159: B1 | AD159: LD3
A160: PROBRAND LTD | B160: 29789 | C160: N | D160: N | E160: TRUE | F160: GB | G160: N | H160: PRIVATE SECTOR | I160: B1 1TT | L160: BIRMINGHA B1 | M160: Information and communication | N160: 62020 | O160: 62 | P160: Computer programming, consultancy and related services | Q160: 0.1532896312 | R160: 2022 | S160: 1960 | T160: 13100 | U160: 261000 | V160: 276060 | W160: 45484526 | X160: =V160/W160 -> 0.006069316849 | Z160: 0 | AA160: Reportable | AB160: Reportable | AC160: B1 | AD160: PR2
A161: ADVANCED COMPUTER SYSTEMS (UK) LTD | B161: 63070 | C161: N | D161: N | E161: TRUE | F161: GB | G161: N | H161: PRIVATE SECTOR | I161: B1 1RF | L161: BIRMINGHA B1 | M161: Information and communication | N161: 62090 | O161: 62 | P161: Computer programming, consultancy and related services | Q161: 0.1532896312 | Z161: 0 | AA161: Reportable | AB161: Reportable | AC161: B1 | AD161: SE7
A162: OPERATIONAL RESEARCH SOCIETY | B162: 67653 | C162: N | D162: N | E162: TRUE | F162: GB | G162: N | H162: VCSE | I162: B1 2RX | L162: BIRMINGHA B1 | M162: Other service activities | N162: 94120 | O162: 94 | P162: Services furnished by membership organisations | Q162: 0.2152598794 | Z162: 0 | AA162: Reportable | AB162: Reportable | AC162: B1 | AD162: CF23
A163: SOLICITORS REGULATION AUTHORITY LTD | B163: 74231 | C163: N | D163: N | E163: TRUE | F163: GB | G163: N | H163: PRIVATE SECTOR | I163: B1 1RN | L163: BIRMINGHA B1 | M163: Administrative and support service activities | N163: 80300 | O163: 80 | P163: Security and investigation services | Q163: 0.1120917125 | AA163: Reportable | AB163: Reportable | AC163: B1 | AD163: SE1
A164: SPEECHWRITE LTD | B164: 22989 | C164: N | D164: N | E164: TRUE | F164: GB | G164: Y | H164: PRIVATE SECTOR | I164: B1 3AP | L164: BIRMINGHA B1 | M164: Wholesale and retail trade; repair of motor vehicles and motorcycles | N164: 47990 | O164: 47 | P164: Retail trade services, except of motor vehicles and motorcycles | Q164: 0.193105719 | Z164: 0 | AA164: Reportable | AB164: Reportable | AC164: B1 | AD164: N7
A165: THE BRITISH SOCIETY FOR ANTIMICROBIAL CHEMOTHERAPY(BSAC) | B165: 59092 | C165: N | D165: N | E165: TRUE | F165: GB | G165: Y | H165: VCSE | I165: B1 3NJ | L165: BIRMINGHA B1 | M165: Other service activities | N165: 94120 | O165: 94 | P165: Services furnished by membership organisations | Q165: 0.2152598794 | AA165: Reportable | AB165: Reportable | AC165: B1 | AD165: CF10
A166: THE PHARMACY INSURANCE AGENCY LTD | B166: 51978 | C166: N | D166: N | E166: TRUE | F166: GB | G166: Y | H166: PRIVATE SECTOR | I166: B1 3EA | L166: BIRMINGHA B1 | M166: Financial and insurance activities | N166: 65120 | O166: 65.1-2 | P166: Insurance and reinsurance services, except compulsory social security | Q166: 0.08819321988 | Z166: 0 | AA166: Reportable | AB166: Reportable | AC166: B1 | AD166: NP10
A167: VIQU LTD | B167: 68431 | C167: N | D167: N | E167: TRUE | F167: GB | G167: Y | H167: PRIVATE SECTOR | I167: B1 1TJ | L167: BIRMINGHA B1 | M167: Professional, scientific and technical activities | N167: 74909 | O167: 74 | P167: Other professional, scientific and technical services | Q167: 0.1630132155 | Z167: 0 | AA167: Reportable | AB167: Reportable | AC167: B1 | AD167: SA1
A168: WALLSCAPERS LTD | B168: 56315 | C168: N | D168: N | E168: TRUE | F168: GB | G168: N | H168: PRIVATE SECTOR | I168: B1 1HP | L168: BIRMINGHA B1 | M168: Professional, scientific and technical activities | N168: 74100 | O168: 74 | P168: Other professional, scientific and technical services | Q168: 0.1630132155 | Z168: 0 | AA168: Reportable | AB168: Reportable | AC168: B1 | AD168: CH6
A169: DELCAM UK | B169: 35048 | C169: N | D169: N | E169: TRUE | F169: GB | G169: N | H169: PRIVATE SECTOR | I169: B10 0HJ | L169: BIRMINGHA B10 | M169: Information and communication | N169: 62020 | O169: 62 | P169: Computer programming, consultancy and related services | Q169: 0.1532896312 | AA169: Reportable | AB169: Reportable | AC169: B10 | AD169: CF72
A170: SHIELD MARQUEE MANUFACTURING LTD | B170: 71284 | C170: N | D170: N | E170: TRUE | F170: GB | G170: N | H170: PRIVATE SECTOR | I170: B10 0RA | L170: BIRMINGHA B10 | M170: Manufacturing | N170: 32990 | O170: 32 | P170: Other manufactured goods | Q170: 0.6168414356 | Z170: 0 | AA170: Reportable | AB170: Reportable | AC170: B10 | AD170: LL12
A171: AD DUA EMPORIUM LTD | B171: 77566 | C171: N | D171: N | E171: TRUE | F171: GB | G171: Y | H171: PRIVATE SECTOR | I171: B11 3PT | L171: BIRMINGHA B11 | M171: Wholesale and retail trade; repair of motor vehicles and motorcycles | N171: 47210 | O171: 47 | P171: Retail trade services, except of motor vehicles and motorcycles | Q171: 0.193105719 | Z171: 0 | AA171: Reportable | AB171: Reportable | AC171: B11 | AD171: NP12
A172: ARDEN ORTHOTICS | B172: 4921 | C172: N | D172: N | E172: TRUE | F172: GB | G172: Y | H172: PRIVATE SECTOR | I172: B11 1TB | L172: BIRMINGHA B11 | M172: Manufacturing | N172: 15200 | O172: 15 | P172: Leather and related products | Q172: 0.7116628182 | AA172: Reportable | AB172: Reportable | AC172: B11 | AD172: BD4
A173: CATERING EQUIPMENT LTD | B173: 56170 | C173: N | D173: N | E173: TRUE | F173: GB | G173: N | H173: PRIVATE SECTOR | I173: B11 2AT | L173: BIRMINGHA B11 | M173: Accommodation and food service activities | N173: 56290 | O173: 56 | P173: Food and beverage serving services | Q173: 0.3160795231 | Z173: 0 | AA173: Reportable | AB173: Reportable | AC173: B11 | AD173: SS11
A174: CLAIM TIME LTD | B174: 69406 | C174: N | D174: N | E174: TRUE | F174: GB | G174: Y | H174: PRIVATE SECTOR | I174: B11 1QS | L174: BIRMINGHA B11 | M174: Professional, scientific and technical activities | N174: 69102 | O174: 69.1 | P174: Legal services | Q174: 0.06805573625 | Z174: 0 | AA174: Reportable | AB174: Reportable | AC174: B11 | AD174: CF10
A175: FORWARD INDUSTRIAL PRODUCTS GROUP LTD | B175: 64166 | C175: N | D175: N | E175: TRUE | F175: GB | G175: Y | H175: PRIVATE SECTOR | I175: B11 2DF | L175: BIRMINGHA B11 | M175: Wholesale and retail trade; repair of motor vehicles and motorcycles | N175: 46900 | O175: 46 | P175: Wholesale trade services, except of motor vehicles and motorcycles | Q175: 0.02234131717 | AA175: Reportable | AB175: Reportable | AC175: B11 | AD175: NP18
A176: HVR PENTAGON LTD | B176: 73406 | C176: N | D176: N | E176: TRUE | F176: GB | G176: Y | H176: PRIVATE SECTOR | I176: B11 2AX | L176: BIRMINGHA B11 | M176: Other service activities | N176: 96090 | O176: 96 | P176: Other personal services | Q176: 0.09278479264 | Z176: 0 | AA176: Reportable | AB176: Reportable | AC176: B11 | AD176: CR2
A177: SPECIALIST COMPUTER CENTRES PLC | B177: 6465 | C177: N | D177: N | E177: TRUE | F177: GB | G177: N | H177: PRIVATE SECTOR | I177: B11 2LE | L177: BIRMINGHA B11 | M177: Information and communication | N177: 62020 | O177: 62 | P177: Computer programming, consultancy and related services | Q177: 0.1532896312 | R177: 2022 | S177: 2401000 | T177: 3900000 | U177: 3865000 | V177: 10166000 | W177: =824095*1000 -> 824095000 | X177: =V177/W177 -> 0.01233595641 | Z177: 0 | AA177: Reportable | AB177: Reportable | AC177: B11 | AD177: SG12
A178: PURPLE MOON PROMOTIONAL PRODUCTS LTD | B178: 64539 | C178: N | D178: N | E178: TRUE | F178: GB | G178: N | H178: PRIVATE SECTOR | I178: B11 2AL | L178: BIRMINGHA B11 | M178: Administrative and support service activities | N178: 82990 | O178: 82 | P178: Office administrative, office support and other business support services | Q178: 0.1892020832 | AA178: Reportable | AB178: Reportable | AC178: B11 | AD178: CH5
A179: SEVILLA COMPONENTS LTD | B179: 21567 | C179: N | D179: N | E179: TRUE | F179: GB | G179: Y | H179: PRIVATE SECTOR | I179: B11 1TB | L179: BIRMINGHA B11 | M179: Wholesale and retail trade; repair of motor vehicles and motorcycles | N179: 46900 | O179: 46 | P179: Wholesale trade services, except of motor vehicles and motorcycles | Q179: 0.02234131717 | Z179: 0 | AA179: Reportable | AB179: Reportable | AC179: B11 | AD179: CF14
A180: STEREX ELECTROLYSIS INTERNATIONAL LTD | B180: 75702 | C180: N | D180: N | E180: TRUE | F180: GB | G180: Y | H180: PRIVATE SECTOR | I180: B11 2AP | L180: BIRMINGHA B11 | M180: Manufacturing | N180: 32990 | O180: 32 | P180: Other manufactured goods | Q180: 0.6168414356 | Z180: 0 | AA180: Reportable | AB180: Reportable | AC180: B11 | AD180: NP18
A181: ZDUP - BARNBOROUGH LTD | B181: 60594 | C181: N | D181: N | E181: TRUE | F181: GB | G181: N | H181: PRIVATE SECTOR | I181: B11 2BL | L181: BIRMINGHA B11 | M181: Manufacturing | N181: 27900 | O181: 27 | P181: Electrical equipment | Q181: 0.4378085751 | AA181: Reportable | AB181: Reportable | AC181: B11 | AD181: LL35
A182: ZDUP - REACH (SUPPORTED LIVING) LTD | B182: 42268 | C182: N | D182: N | E182: TRUE | F182: GB | G182: N | H182: VCSE | I182: B11 2DE | L182: BIRMINGHA B11 | M182: Human health and social work activities | N182: 87000 | O182: 87 | P182: Residential care services | Q182: 0.2139303078 | AA182: Reportable | AB182: Reportable | AC182: B11 | AD182: LL57
A183: SOFTWARE ENTERPRISES LTD | B183: 32053 | C183: N | D183: N | E183: TRUE | F183: GB | G183: N | H183: PRIVATE SECTOR | I183: B12 0NS | L183: BIRMINGHA B12 | M183: Information and communication | N183: 62012 | O183: 62 | P183: Computer programming, consultancy and related services | Q183: 0.1532896312 | Z183: 0 | AA183: Reportable | AB183: Reportable | AC183: B12 | AD183: CF38
A184: KEYSTONE WOOD T/A KEYSTONE CASTOR COMPANY | B184: 3932 | C184: N | D184: N | E184: TRUE | F184: GB | G184: Y | H184: PRIVATE SECTOR | I184: B12 0NB | L184: BIRMINGHA B12 | M184: Wholesale and retail trade; repair of motor vehicles and motorcycles | N184: 46760 | O184: 46 | P184: Wholesale trade services, except of motor vehicles and motorcycles | Q184: 0.02234131717 | Z184: 0 | AA184: Reportable | AB184: Reportable | AC184: B12 | AD184: NP16
A185: LINTON METALWARE LTD | B185: 53161 | C185: N | D185: N | E185: TRUE | F185: GB | G185: Y | H185: PRIVATE SECTOR | I185: B12 8JD | L185: BIRMINGHA B12 | M185: Manufacturing | N185: 25920 | O185: 25OTHER | P185: Fabricated metal products, excl. machinery and equipment and weapons & ammunition - 25.1-3/25.5-9 | Q185: 0.5753449887 | AA185: Reportable | AB185: Reportable | AC185: B12 | AD185: SW15
A186: MENDUK LTD | B186: 72458 | C186: N | D186: N | E186: TRUE | F186: GB | G186: Y | H186: PRIVATE SECTOR | I186: B12 9RG | L186: BIRMINGHA B12 | M186: Administrative and support service activities | N186: 82990 | O186: 82 | P186: Office administrative, office support and other business support services | Q186: 0.1892020832 | Z186: 0 | AA186: Reportable | AB186: Reportable | AC186: B12 | AD186: LL28
A187: STAG CHEMIST BIRMINGHAM LTD | B187: 75839 | C187: N | D187: N | E187: TRUE | F187: GB | G187: N | H187: PRIVATE SECTOR | I187: B12 8AN | L187: BIRMINGHA B12 | M187: Administrative and support service activities | N187: 82990 | O187: 82 | P187: Office administrative, office support and other business support services | Q187: 0.1892020832 | AA187: Reportable | AB187: Reportable | AC187: B12 | AD187: B19
A188: STERLING PHARMACEUTICALS LTD TA STERLING SPECIALS | B188: 36849 | C188: N | D188: N | E188: TRUE | F188: GB | G188: Y | H188: PRIVATE SECTOR | I188: B12 9DR | L188: BIRMINGHA B12 | M188: Manufacturing | N188: 21200 | O188: 21 | P188: Basic pharmaceutical products and pharmaceutical preparations | Q188: 0.5812436945 | Z188: 0 | AA188: Reportable | AB188: Reportable | AC188: B12 | AD188: CF82
A189: ZDUP ESUPPLIES MEDICAL LTD | B189: 58969 | C189: N | D189: N | E189: TRUE | F189: GB | G189: N | H189: PRIVATE SECTOR | I189: B12 9RH | L189: BIRMINGHA B12 | M189: Wholesale and retail trade; repair of motor vehicles and motorcycles | N189: 47900 | O189: 47 | P189: Retail trade services, except of motor vehicles and motorcycles | Q189: 0.193105719 | AA189: Reportable | AB189: Reportable | AC189: B12 | AD189: SA2
A190: JOHN BURNHAM | B190: 54518 | C190: N | D190: N | E190: TRUE | F190: GB | G190: N | H190: PRIVATE SECTOR | I190: B13 8DS | L190: BIRMINGHA B13 | M190: Human health and social work activities | N190: 86220 | O190: 86 | P190: Human health services | Q190: 0.3203077099 | AA190: Reportable | AB190: Reportable | AC190: B13 | AD190: BB3
A191: LAVIN AND SONS CONSTRUCTION LTD | B191: 72083 | C191: N | D191: N | E191: TRUE | F191: GB | G191: Y | H191: PRIVATE SECTOR | I191: B13 0BT | L191: BIRMINGHA B13 | M191: Construction | N191: 43390 | O191: 42.99 | P191: Specialised construction works | Q191: 0.3123398822 | AA191: Reportable | AB191: Reportable | AC191: B13 | AD191: SW1A
A192: MARMAN ESTATES LTD | B192: 77126 | C192: N | D192: N | E192: TRUE | F192: GB | G192: Y | H192: PRIVATE SECTOR | I192: B13 9HF | L192: BIRMINGHA B13 | M192: Other service activities | N192: 96090 | O192: 96 | P192: Other personal services | Q192: 0.09278479264 | Z192: 0 | AA192: Reportable | AB192: Reportable | AC192: B13 | AD192: CF3
A193: MR NAJUM QURESHI MA FRCOG | B193: 60474 | C193: N | D193: N | E193: TRUE | F193: GB | G193: N | H193: PRIVATE SECTOR | I193: B13 8QX | L193: BIRMINGHA B13 | M193: Human health and social work activities | N193: 86000 | O193: 86 | P193: Human health services | Q193: 0.3203077099 | AA193: Reportable | AB193: Reportable | AC193: B13 | AD193: LL30
A194: UK NEQAS FOR CLINICAL CHEMISTRY | B194: 8325 | C194: N | D194: N | E194: TRUE | F194: GB | G194: N | H194: PRIVATE SECTOR | I194: B13 8QY | L194: BIRMINGHA B13 | M194: Other service activities | N194: 94000 | O194: 94 | P194: Services furnished by membership organisations | Q194: 0.2152598794 | AA194: Reportable | AB194: Reportable | AC194: B13 | AD194: LL11
A195: UK PRIME LTD | B195: 69872 | C195: N | D195: N | E195: TRUE | F195: GB | G195: Y | H195: PRIVATE SECTOR | I195: B13 9UE | L195: BIRMINGHA B13 | M195: Professional, scientific and technical activities | N195: 70229 | O195: 70 | P195: Services of head offices; management consulting services | Q195: 0.1606219056 | AA195: Reportable | AB195: Reportable | AC195: B13 | AD195: SA4
A196: AURIC VENTURES LTD | B196: 49497 | C196: N | D196: N | E196: TRUE | F196: GB | G196: N | H196: PRIVATE SECTOR | I196: B14 5EE | L196: BIRMINGHA B14 | M196: Professional, scientific and technical activities | N196: 70229 | O196: 70 | P196: Services of head offices; management consulting services | Q196: 0.1606219056 | AA196: Reportable | AB196: Reportable | AC196: B14 | AD196: OX7
A197: CREATIVE COMMUNICATORS | B197: 59402 | C197: N | D197: N | E197: TRUE | F197: GB | G197: N | H197: PRIVATE SECTOR | I197: B14 6DN | L197: BIRMINGHA B14 | M197: Other service activities | N197: 96090 | O197: 96 | P197: Other personal services | Q197: 0.09278479264 | AA197: Reportable | AB197: Reportable | AC197: B14 | AD197: PE23
A198: LG DAVIS (STATIONERS) LTD | B198: 26021 | C198: N | D198: N | E198: TRUE | F198: GB | G198: Y | H198: PRIVATE SECTOR | I198: B14 4TS | L198: BIRMINGHA B14 | M198: Manufacturing | N198: 18129 | O198: 18 | P198: Printing and recording services | Q198: 0.4337126854 | AA198: Reportable | AB198: Reportable | AC198: B14 | AD198: CF83
A199: LIONS CLUB INTERNATIONAL | B199: 65691 | C199: N | D199: N | E199: TRUE | F199: GB | G199: Y | H199: VCSE | I199: B14 6DT | L199: BIRMINGHA B14 | M199: Human health and social work activities | N199: 88990 | O199: 88 | P199: Social work services without accommodation | Q199: 0.2283360797 | AA199: Reportable | AB199: Reportable | AC199: B14 | AD199: BH21
A200: MPHARMA LTD | B200: 50323 | C200: N | D200: N | E200: TRUE | F200: GB | G200: Y | H200: PRIVATE SECTOR | I200: B14 7SR | L200: BIRMINGHA B14 | M200: Wholesale and retail trade; repair of motor vehicles and motorcycles | N200: 47990 | O200: 47 | P200: Retail trade services, except of motor vehicles and motorcycles | Q200: 0.193105719 | AA200: Reportable | AB200: Reportable | AC200: B14 | AD200: LL30
... 2050 more rows
